Workbook

Sheet INPUT
A1: =IF(H9=1,"TEST PERIOD WITH RIDERS","TEST PERIOD WITHOUT RIDERS") -> TEST PERIOD WITH RIDERS
A3: Input Areas in Grey - Current Rates as of April 2025
B4: 12 MONTHS FORECASTED | D4: =IF(H9=1,"INCLUDES ALL RIDERS","") -> INCLUDES ALL RIDERS
B6: DUKE ENERGY KENTUCKY
B7: CASE NO. 2025-00125
B8: AUTOMATED RATE CASE FILING SYSTEM
B9: FOR THE TWELVE MONTHS ENDED DECEMBER 31, 2026 | H9: 1
B11: TYPE OF SERVICE: | C11: (GAS SERVICE)
B12: DATA: ___ BASE PERIOD _X_FORECASTED PERIOD
B13: TYPE OF FILING: _X_ ORIGINAL ___UPDATED ___ REVISED
B15: WITNESS: | C15: B. L. Sailers
B17: CURRENT RATES:
B18: EXPECTED GAS COST: | C18: 6.6991 | E18: $ per MCF
C20: Do not enter riders below. Enter them over here!
B21: Rider DSMR: | C21: Current | D21: Proposed | F21: ---------> | G21: Current | H21: Proposed
B22: Rate RS (HEA) | C22: =IF($H$9=1,G22,0) -> 0.3 | D22: =IF($H$9=1,H22,0) -> 0.3 | E22: Monthly | G22: 0.3 | H22: 0.3 | I22: Monthly
B23: Rate RS | C23: =IF($H$9=1,G23,0) -> 0.01249 | D23: =IF($H$9=1,H23,0) -> 0.01249 | E23: $ per MCF | G23: 0.01249 | H23: 0.01249 | I23: $ per MCF
B24: Rate GS | C24: =IF($H$9=1,G24,0) -> 0 | D24: =IF($H$9=1,H24,0) -> 0 | E24: $ per MCF | G24: 0 | H24: 0 | I24: $ per MCF
B26: Rider PMM: | C26: Current | D26: Proposed | G26: Current | H26: Proposed
B27: Rate RS | C27: =IF($H$9=1,G27,0) -> 1.2 | D27: 1.2 | E27: $ per MCF | G27: 1.2 | H27: 1.2 | I27: $ per MCF
B28: Rate GS | C28: 0.3 | D28: 0.3 | E28: $ per MCF | G28: 0.3 | H28: 0.3 | I28: $ per MCF
B29: Rate FT-L | C29: 0.0102 | D29: 0.0102 | E29: $ per MCF | G29: 0.0102 | H29: 0.0102 | I29: $ per MCF
B30: Rate IT | C30: 0.0115 | D30: 0.0115 | E30: $ per MCF | G30: 0.0115 | H30: 0.0115 | I30: $ per MCF
B32: Rider GCAT: | C32: Current | D32: Proposed
B33: Rate FT-L | C33: 0.037 | D33: 0.037 | E33: $ per MCF
B35: Interdepartmental Rates | C35: Current | D35: Proposed
B36: Customer Charge | E36: $ per MCF | F36: Not used
B39: Rate RS: | C39: Current | D39: Proposed
B40: Customer Charge | C40: 17.5 | D40: ='Proposed Rates'!C14 -> 20 | E40: $ per Month
B41: Delivery Rate | C41: 5.2474 | D41: ='Proposed Rates'!C20 -> 7.0424 | E41: $ per MCF
B43: Rate GS: | C43: Current | D43: Proposed
B44: Customer Charge | C44: 58 | D44: ='Proposed Rates'!G14 -> 65 | E44: $ per Month
B45: Delivery Rate | C45: 3.7443 | D45: ='Proposed Rates'!G22 -> 5.5681 | E45: $ per MCF
B47: Rate FT-L: | C47: Current | D47: Proposed
B48: Administrative Charge | C48: 430 | D48: ='Proposed Rates'!K14 -> 430 | E48: $ per Month
B49: Delivery Rate | C49: 2.1976 | D49: ='Proposed Rates'!K22 -> 2.1688 | E49: $ per MCF
B51: Rate IT: | C51: Current | D51: Proposed
B52: Administrative Charge | C52: 430 | D52: ='Proposed Rates'!O14 -> 430 | E52: $ per Month
B53: Commodity Charge | C53: 1.13 | D53: ='Proposed Rates'!O20 -> 1.1498 | E53: $ per MCF

Sheet PRINT
B6: SCHEDULE M-2.2 (CURRENT RATES) | L6: SCHEDULE M-2.3 (PROPOSED RATES)

Sheet SCH M
A1: =COMPANY -> DUKE ENERGY KENTUCKY
A2: =CASE -> CASE NO. 2025-00125
A3: REVENUES AT PRESENT AND PROPOSED RATES
A4: =TIME_PERIOD -> FOR THE TWELVE MONTHS ENDED DECEMBER 31, 2026
A5: =SERV_TYPE -> (GAS SERVICE)
A7: =DATA_TYPE -> DATA: ___ BASE PERIOD _X_FORECASTED PERIOD | K7: SCHEDULE M
A8: =FILING_TYPE -> TYPE OF FILING: _X_ ORIGINAL ___UPDATED ___ REVISED | K8: PAGE 1 OF 1
A9: WORK PAPER REFERENCE NO(S).: | K9: WITNESS:
A10: =TIME -> 12 MONTHS FORECASTED | K10: =WIT -> B. L. Sailers
A11: =INPUT!D4 -> INCLUDES ALL RIDERS
E14: REVENUE AT | G14: REVENUE AT | I14: REVENUE | K14: % OF
A15: LINE | C15: RATE | E15: PRESENT | G15: PROPOSED | I15: CHANGE | K15: REVENUE
A16: NO. | C16: CLASSIFICATION | E16: RATES | G16: RATES | I16: (AMOUNT) | K16: CHANGE
C17: (A) | E17: (B) | G17: (C) | I17: (D=C-B) | K17: (E=D / B)
E18: ($) | G18: ($) | I18: ($)
A19: 1 | C19: SALES SERVICE:
A21: 2 | C21: RS RESIDENTIAL | E21: ='Rate RS'!AN81 -> 101928645 | G21: ='Rate RS'!R39 -> 115918494 | I21: =G21-E21 -> 13989849 | K21: =IF(E21=0,"0.00%",ROUND(I21/E21,4)) -> 0.1373
A22: 3 | C22: TOTAL RS | E22: =E21 -> 101928645 | G22: =G21 -> 115918494 | I22: =I21 -> 13989849 | K22: =IF(E22=0,"0.00%",ROUND(I22/E22,4)) -> 0.1373
A24: 4 | C24: GS COMMERCIAL | E24: ='Rate GS COM'!AN79 -> 36273066 | G24: ='Rate GS COM'!R38 -> 42200444 | I24: =G24-E24 -> 5927378 | K24: =IF(E24=0,"0.00%",ROUND(I24/E24,4)) -> 0.1634
A25: 5 | C25: GS INDUSTRIAL | E25: ='Rate GS IND'!AN84 -> 2328697 | G25: ='Rate GS IND'!R38 -> 2718191 | I25: =G25-E25 -> 389494 | K25: =IF(E25=0,"0.00%",ROUND(I25/E25,4)) -> 0.1673
A26: 6 | C26: GS OTHER PUB AUTH | E26: ='Rate GS OPA'!AN81 -> 3042937 | G26: ='Rate GS OPA'!R38 -> 3549470 | I26: =G26-E26 -> 506533 | K26: =IF(E26=0,"0.00%",ROUND(I26/E26,4)) -> 0.1665
A27: 7 | C27: TOTAL GS | E27: =SUM(E24:E26) -> 41644700 | G27: =SUM(G24:G26) -> 48468105 | I27: =SUM(I24:I26) -> 6823405 | K27: =IF(E27=0,"0.00%",ROUND(I27/E27,4)) -> 0.1638
A29: 8 | C29: TOTAL SALES SERVICE | E29: =E22+E27 -> 143573345 | G29: =G22+G27 -> 164386599 | I29: =I22+I27 -> 20813254 | K29: =IF(E29=0,"0.00%",ROUND(I29/E29,4)) -> 0.145
A31: 9 | C31: TRANSPORTATION:
A33: 10 | C33: FT LARGE | E33: ='Rate FT-LG'!AN73 -> 7378468 | G33: ='Rate FT-LG'!R35 -> 7292005 | I33: =G33-E33 -> -86463 | K33: =IF(E33=0,"0.00%",ROUND(I33/E33,4)) -> -0.0117
A34: 11 | C34: IT | E34: ='Rate IT'!AN74 -> 1986270 | G34: ='Rate IT'!R34 -> 2019038 | I34: =G34-E34 -> 32768 | K34: =IF(E34=0,"0.00%",ROUND(I34/E34,4)) -> 0.0165
A35: 12 | C35: TOTAL TRANSPORTATION | E35: =SUM(E33:E34) -> 9364738 | G35: =SUM(G33:G34) -> 9311043 | I35: =SUM(I33:I34) -> -53695 | K35: =IF(E35=0,"0.00%",ROUND(I35/E35,4)) -> -0.0057
A36: 13 | C36: TOTAL THROUGHPUT | E36: =E35+E29 -> 152938083 | G36: =G35+G29 -> 173697642 | I36: =I35+I29 -> 20759559 | K36: =IF(E36=0,"0.00%",ROUND(I36/E36,4)) -> 0.1357
A37: 14 | C37: MISCELLANEOUS REVENUES:
A39: 15 | C39: LATE PAYMENT CHARGES | E39: ='SCH M-2.2'!V37 -> 358320 | G39: ='SCH M-2.3'!R37 -> 358320 | I39: =G39-E39 -> 0 | K39: =IF(I39=0,"0.00%",ROUND(I39/E39,4)) -> 0.00%
A40: 16 | C40: BAD CHECK CHARGES | E40: ='SCH M-2.2'!V38 -> 21480 | G40: ='SCH M-2.3'!R38 -> 21480 | I40: 0 | K40: 0.00%
A41: 17 | C41: RECONNECTION CHARGES | E41: ='SCH M-2.2'!V39 -> 8664 | G41: ='SCH M-2.3'!R39 -> 10589 | I41: 1925 | K41: 0.2222
A42: 18 | C42: FIELD COLLECTION CHARGES | E42: ='SCH M-2.2'!V40 -> 0 | G42: ='SCH M-2.3'!R40 -> 0 | I42: 0 | K42: 0.00%
A43: 19 | C43: INTERDEPARTMENTAL | E43: ='SCH M-2.2'!V41 -> 49830 | G43: ='SCH M-2.3'!R41 -> 58200 | I43: 8370 | K43: 0.168
A44: 20 | C44: SPECIAL CONTRACTS | E44: ='SCH M-2.2'!V42 -> 677460 | G44: ='SCH M-2.3'!R42 -> 1532059 | I44: 854599 | K44: 1.2615
A45: 21 | C45: REVENUE TRANSP OF GAS-INTERCO | E45: ='SCH M-2.2'!V43 -> 0 | G45: ='SCH M-2.3'!R43 -> 0 | I45: 0 | K45: 0.00%
A46: 22 | C46: PROVISION FOR RATE REFUNDS | E46: ='SCH M-2.2'!V44 -> 0 | G46: ='SCH M-2.3'!R44 -> 0 | I46: =G46-E46 -> 0 | K46: =IF(I46=0,"0.00%",ROUND(I46/E46,4)) -> 0.00%
A47: 23 | C47: OTHER MISC | E47: ='SCH M-2.2'!V45 -> 21852 | G47: ='SCH M-2.3'!R45 -> 21852 | I47: 0 | K47: 0.00%
A48: 24 | C48: TOTAL MISCELLANEOUS | E48: =SUM(E39:E47) -> 1137606 | G48: =SUM(G39:G47) -> 2002500 | I48: =SUM(I39:I47) -> 864894 | K48: 0.7603
A50: 25 | C50: TOTAL COMPANY REVENUE | E50: =E29+E35+E48 -> 154075689 | G50: =G29+G35+G48 -> 175700142 | I50: =I29+I35+I48 -> 21624453 | K50: =IF(I50=0,"0.00%",ROUND(I50/E50,4)) -> 0.1403

Sheet SCH M-2.1
A1: =COMPANY -> DUKE ENERGY KENTUCKY
A2: =CASE -> CASE NO. 2025-00125
A3: TEST PERIOD REVENUES AT CURRENT AVERAGE RATES
A4: =TIME_PERIOD -> FOR THE TWELVE MONTHS ENDED DECEMBER 31, 2026
A5: =SERV_TYPE -> (GAS SERVICE)
A6: =DATA_TYPE -> DATA: ___ BASE PERIOD _X_FORECASTED PERIOD | R6: SCHEDULE M-2.1
A7: =FILING_TYPE -> TYPE OF FILING: _X_ ORIGINAL ___UPDATED ___ REVISED | R7: PAGE 1 OF 1
A8: WORK PAPER REFERENCE NO(S).: | R8: WITNESS:
A9: =TIME -> 12 MONTHS FORECASTED | F9: =INPUT!D4 -> INCLUDES ALL RIDERS | R9: =WIT -> B. L. Sailers
A10: TEST PERIOD
J12: TEST PERIOD | N12: % OF REV
J13: REVENUE LESS | L13: CURRENT | N13: TO TOTAL | R13: TEST PERIOD
A14: LINE | C14: RATE | D14: CLASS / | F14: CUSTOMER | J14: GAS COST | L14: AVERAGE | N14: EXCLUSIVE OF | P14: GAS COST | R14: REVENUE | T14: % OF REV
A15: NO. | C15: CODE | D15: DESCRIPTION | F15: BILLS | H15: SALES | J15: REVENUE | L15: RATE | N15: GAS COST | P15: REVENUE | R15: TOTAL | T15: TO TOTAL
C16: (A) | D16: (B) | F16: (C) | H16: (D) | J16: (E) | L16: (F=E/D) | N16: (G) | P16: (H) | R16: (I) | T16: (J)
H18: (MCF) | J18: ($) | L18: ($/MCF) | N18: (%) | P18: ($) | R18: ($) | T18: (%)
A19: 1 | C19: RS | D19: RESIDENTIAL SERVICE | F19: ='Rate RS'!X81 -> 1194296 | H19: ='Rate RS'!Z81 -> 6130423 | J19: ='Rate RS'!AD81 -> 60860328 | L19: =IF(H19=0,"-",ROUND(J19/H19,4)) -> 9.9276 | N19: =IF(ABS(J19/$J$34*100)<0.005,"-",ROUND(J19/$J$34*100,2))-0.01 -> 67.51 | P19: ='Rate RS'!AL81 -> 41068317 | R19: =J19+P19 -> 101928645 | T19: =IF(ABS(R19/$R$34*100)<0.005,"-",ROUND(R19/$R$34*100,2)) -> 66.15
A20: 2 | C20: GS | D20: GENERAL SERVICE COMMERCIAL | F20: ='Rate GS COM'!X79 -> 80932 | H20: ='Rate GS COM'!Z79 -> 2939387 | J20: ='Rate GS COM'!AD79 -> 16581819 | L20: =IF(H20=0,"-",ROUND(J20/H20,4)) -> 5.6413 | N20: =IF(ABS(J20/$J$34*100)<0.005,"-",ROUND(J20/$J$34*100,2)) -> 18.4 | P20: ='Rate GS COM'!AL79 -> 19691247 | R20: =J20+P20 -> 36273066 | T20: 23.54
A21: 3 | C21: GS | D21: GENERAL SERVICE INDUSTRIAL | F21: ='Rate GS IND'!X84 -> 2047 | H21: ='Rate GS IND'!Z84 -> 205705 | J21: ='Rate GS IND'!AD84 -> 950659 | L21: 4.6215 | N21: 1.05 | P21: ='Rate GS IND'!AL84 -> 1378038 | R21: 2328697 | T21: 1.51
A22: 4 | C22: GS | D22: GENERAL SERVICE OTHER PUB AUTH | F22: ='Rate GS OPA'!X81 -> 3526 | H22: ='Rate GS OPA'!Z81 -> 264202 | J22: ='Rate GS OPA'!AD81 -> 1273021 | L22: 4.8184 | N22: 1.41 | P22: ='Rate GS OPA'!AL81 -> 1769916 | R22: 3042937 | T22: 1.97
A23: 5 | C23: FT-L | D23: FIRM TRANSPORTATION-LARGE | F23: ='Rate FT-LG'!X73 -> 1737 | H23: ='Rate FT-LG'!Z73 -> 3002186 | J23: ='Rate FT-LG'!AD73 -> 7375136 | L23: 2.4566 | N23: 8.18 | P23: ='Rate FT-LG'!AL73 -> 3332 | R23: 7378468 | T23: 4.79
A24: 6 | C24: IT | D24: INTERRUPTIBLE TRANSPORTATION | F24: ='Rate IT'!X74 -> 226 | H24: ='Rate IT'!Z74 -> 1654919 | J24: ='Rate IT'!AD74 -> 1986270 | L24: =IF(H24=0,"-",ROUND(J24/H24,4)) -> 1.2002 | N24: 2.2 | P24: ='Rate IT'!AL74 -> 0 | R24: =J24+P24 -> 1986270 | T24: 1.29
A25: 7 | D25: LATE PAYMENT CHARGES | F25: ='SCH M-2.2'!F37 -> 0 | H25: ='SCH M-2.2'!H37 -> 0 | J25: ='SCH M-2.2'!L37 -> 358320 | L25: =IF(H25=0,"-",ROUND(J25/H25,4)) -> - | N25: 0.4 | P25: ='SCH M-2.2'!T37 -> 0 | R25: 358320 | T25: 0.23
A26: 8 | D26: BAD CHECK CHARGES | F26: ='SCH M-2.2'!F38 -> 0 | H26: ='SCH M-2.2'!H38 -> 0 | J26: ='SCH M-2.2'!L38 -> 21480 | L26: - | N26: 0.02 | P26: ='SCH M-2.2'!T38 -> 0 | R26: 21480 | T26: 0.01
A27: 9 | D27: RECONNECTION CHARGES | F27: ='SCH M-2.2'!F39 -> 0 | H27: ='SCH M-2.2'!H39 -> 0 | J27: ='SCH M-2.2'!L39 -> 8664 | L27: - | N27: 0.01 | P27: ='SCH M-2.2'!T39 -> 0 | R27: 8664 | T27: 0.01
A28: 10 | D28: FIELD COLLECTION CHARGES | F28: ='SCH M-2.2'!F40 -> 0 | H28: ='SCH M-2.2'!H40 -> 0 | J28: ='SCH M-2.2'!L40 -> 0 | L28: - | N28: - | P28: ='SCH M-2.2'!T40 -> 0 | R28: 0 | T28: -
A29: 11 | D29: INTERDEPARTMENTAL | F29: ='SCH M-2.2'!F41 -> 0 | H29: ='SCH M-2.2'!H41 -> 4064 | J29: ='SCH M-2.2'!L41 -> 22605 | L29: 5.5623 | N29: 0.03 | P29: ='SCH M-2.2'!T41 -> 27225 | R29: 49830 | T29: 0.03
A30: 12 | D30: SPECIAL CONTRACTS | F30: ='SCH M-2.2'!F42 -> 0 | H30: ='SCH M-2.2'!H42 -> 0 | J30: ='SCH M-2.2'!L42 -> 677460 | L30: - | N30: 0.75 | P30: ='SCH M-2.2'!T42 -> 0 | R30: 677460 | T30: 0.44
A31: 13 | D31: REVENUE TRANSP OF GAS-INTERCO | F31: ='SCH M-2.2'!F43 -> 0 | H31: ='SCH M-2.2'!H43 -> 0 | J31: ='SCH M-2.2'!L43 -> 0 | L31: - | N31: - | P31: ='SCH M-2.2'!T43 -> 0 | R31: 0 | T31: -
A32: 14 | D32: PROVISION FOR RATE REFUNDS | F32: ='SCH M-2.2'!F44 -> 0 | H32: ='SCH M-2.2'!H44 -> 0 | J32: ='SCH M-2.2'!L44 -> 0 | L32: =IF(H32=0,"-",ROUND(J32/H32,4)) -> - | N32: - | P32: ='SCH M-2.2'!T44 -> 0 | R32: =J32+P32 -> 0 | T32: -
A33: 15 | D33: OTHER MISCELLANEOUS | F33: ='SCH M-2.2'!F45 -> 0 | H33: ='SCH M-2.2'!H45 -> 0 | J33: ='SCH M-2.2'!L45 -> 21852 | L33: - | N33: 0.02 | P33: ='SCH M-2.2'!T45 -> 0 | R33: 21852 | T33: 0.01
A34: 16 | C34: TOTAL | F34: =SUM(F19:F33) -> 1282764 | H34: =SUM(H19:H33) -> 14200886 | J34: =SUM(J19:J33) -> 90137614 | L34: =IF(H34=0,"-",ROUND(J34/H34,4)) -> 6.3473 | N34: =SUM(N19:N33) -> 99.98 | P34: =SUM(P19:P33) -> 63938075 | R34: =SUM(R19:R33) -> 154075689 | T34: =SUM(T19:T33) -> 99.98
C36: NOTE: DETAIL CONTAINED ON SCHEDULES M-2.2 AND M-2.3.

Sheet SCH M-2.2
A1: =COMPANY -> DUKE ENERGY KENTUCKY
A2: =CASE -> CASE NO. 2025-00125
A3: ANNUALIZED REVENUES AT PROPOSED VS. MOST CURRENT RATES
A4: =TIME_PERIOD -> FOR THE TWELVE MONTHS ENDED DECEMBER 31, 2026
A5: =SERV_TYPE -> (GAS SERVICE)
A6: =DATA_TYPE -> DATA: ___ BASE PERIOD _X_FORECASTED PERIOD | V6: SCHEDULE M-2.2
A7: =FILING_TYPE -> TYPE OF FILING: _X_ ORIGINAL ___UPDATED ___ REVISED | V7: PAGE 1 OF 7
A8: WORK PAPER REFERENCE NO(S).: | V8: WITNESS:
A9: =TIME -> 12 MONTHS FORECASTED | F9: =INPUT!D4 -> INCLUDES ALL RIDERS | V9: =WIT -> B. L. Sailers
A10: CURRENT ANNUALIZED
L12: CURRENT | N12: % OF REV TO | P12: REVENUE | R12: % INCR IN | V12: CURRENT | X12: TOTAL
J13: MOST | L13: REVENUE LESS | N13: TOTAL LESS | P13: INCR LESS | R13: REV LESS | V13: TOTAL | X13: REVENUE
A14: LINE | C14: RATE | D14: CLASS / | F14: CUSTOMER | J14: CURRENT | L14: GAS COST | N14: GAS COST | P14: GAS COST REV | R14: GAS COST REV | T14: GAS COST | V14: REVENUE | X14: % INCREASE
A15: NO. | C15: CODE | D15: DESCRIPTION | F15: BILLS(1) | H15: SALES(2) | J15: RATES | L15: REVENUE(4) | N15: REVENUE | P15: (F - K) | R15: (M / K) | T15: REVENUE(3) | V15: (K + H) | X15: (M / K1)
C16: (A) | D16: (B) | F16: (C) | H16: (D) | J16: (J) | L16: (K) | N16: (L) | P16: (M) | R16: (N) | T16: (H) | V16: (K1) | X16: (O)
H18: (MCF) | J18: ($/MCF) | L18: ($) | N18: (%) | P18: ($) | R18: (%) | T18: ($) | V18: ($) | X18: (%)
A19: 1 | C19: SALES SERVICE:
A20: 2 | C20: RS | D20: RESIDENTIAL | F20: ='Rate RS'!X81 -> 1194296 | H20: ='Rate RS'!Z81 -> 6130423 | J20: =ROUND((L20/H20),4) -> 9.9276 | L20: ='Rate RS'!AD81 -> 60860328 | N20: =ROUND((L20/L$21)*100,2) -> 100 | P20: ='Rate RS'!AH81 -> 13989849 | R20: =IF(L20=0,"0.0 ",ROUND((P20/L20)*100,1)) -> 23 | T20: ='Rate RS'!AL81 -> 41068317 | V20: ='Rate RS'!AN81 -> 101928645 | X20: =IF(V20=0,"0.0 ",ROUND((P20/V20)*100,1)) -> 13.7
A21: 3 | D21: TOTAL RS | F21: =F20 -> 1194296 | H21: =H20 -> 6130423 | J21: =ROUND((L21/H21),4) -> 9.9276 | L21: =L20 -> 60860328 | N21: =ROUND((L21/$L48)*100,2)+0.01 -> 67.53 | P21: =P20 -> 13989849 | R21: =IF(L21=0,"0.0 ",ROUND((P21/L21)*100,1)) -> 23 | T21: =T20 -> 41068317 | V21: =V20 -> 101928645 | X21: =IF(V21=0,"0.0 ",ROUND((P21/V21)*100,1)) -> 13.7
A23: 4 | C23: GS | D23: COMMERCIAL | F23: ='Rate GS COM'!X79 -> 80932 | H23: ='Rate GS COM'!Z79 -> 2939387 | J23: =ROUND((L23/H23),4) -> 5.6413 | L23: ='Rate GS COM'!AD79 -> 16581819 | N23: =ROUND((L23/$L26)*100,2) -> 88.18 | P23: ='Rate GS COM'!AH79 -> 5927378 | R23: =IF(L23=0,"0.0 ",ROUND((P23/L23)*100,1)) -> 35.7 | T23: ='Rate GS COM'!AL79 -> 19691247 | V23: ='Rate GS COM'!AN79 -> 36273066 | X23: =IF(V23=0,"0.0 ",ROUND((P23/V23)*100,1)) -> 16.3
A24: 5 | C24: GS | D24: INDUSTRIAL | F24: ='Rate GS IND'!X84 -> 2047 | H24: ='Rate GS IND'!Z84 -> 205705 | J24: =ROUND((L24/H24),4) -> 4.6215 | L24: ='Rate GS IND'!AD84 -> 950659 | N24: =ROUND((L24/$L26)*100,2) -> 5.06 | P24: ='Rate GS IND'!AH84 -> 389494 | R24: =IF(L24=0,"0.0 ",ROUND((P24/L24)*100,1)) -> 41 | T24: ='Rate GS IND'!AL84 -> 1378038 | V24: ='Rate GS IND'!AN84 -> 2328697 | X24: =IF(V24=0,"0.0 ",ROUND((P24/V24)*100,1)) -> 16.7
A25: 6 | C25: GS | D25: OTH PUB AUTH | F25: ='Rate GS OPA'!X81 -> 3526 | H25: ='Rate GS OPA'!Z81 -> 264202 | J25: =ROUND((L25/H25),4) -> 4.8184 | L25: ='Rate GS OPA'!AD81 -> 1273021 | N25: =ROUND((L25/$L26)*100,2) -> 6.77 | P25: ='Rate GS OPA'!AH81 -> 506533 | R25: =IF(L25=0,"0.0 ",ROUND((P25/L25)*100,1)) -> 39.8 | T25: ='Rate GS OPA'!AL81 -> 1769916 | V25: ='Rate GS OPA'!AN81 -> 3042937 | X25: =IF(V25=0,"0.0 ",ROUND((P25/V25)*100,1)) -> 16.6
A26: 7 | D26: TOTAL GS | F26: =SUM(F23:F25) -> 86505 | H26: =SUM(H23:H25) -> 3409294 | J26: =ROUND((L26/H26),4) -> 5.516 | L26: =SUM(L23:L25) -> 18805499 | N26: =ROUND((L26/$L48)*100,2) -> 20.86 | P26: =SUM(P23:P25) -> 6823405 | R26: =IF(L26=0,"0.0 ",ROUND((P26/L26)*100,1)) -> 36.3 | T26: =SUM(T23:T25) -> 22839201 | V26: =SUM(V23:V25) -> 41644700 | X26: =IF(V26=0,"0.0 ",ROUND((P26/V26)*100,1)) -> 16.4
A28: 8 | C28: TOTAL SALES SERVICE | F28: =F21+F26 -> 1280801 | H28: =H21+H26 -> 9539717 | J28: =ROUND((L28/H28),4) -> 8.351 | L28: =L21+L26 -> 79665827 | N28: =100-N33-N46 -> 88.38 | P28: =P21+P26 -> 20813254 | R28: =IF(L28=0,"0.0 ",ROUND((P28/L28)*100,1)) -> 26.1 | T28: =T21+T26 -> 63907518 | V28: =V21+V26 -> 143573345 | X28: =IF(V28=0,"0.0 ",ROUND((P28/V28)*100,1)) -> 14.5
A30: 9 | C30: TRANSPORTATION SERVICE:
A31: 10 | C31: FT-L | D31: FIRM TRANSP - LARGE | F31: ='Rate FT-LG'!X73 -> 1737 | H31: ='Rate FT-LG'!Z73 -> 3002186 | J31: =ROUND((L31/H31),4) -> 2.4566 | L31: ='Rate FT-LG'!AD73 -> 7375136 | N31: =ROUND((L31/L$33)*100,2) -> 78.78 | P31: ='Rate FT-LG'!AH73 -> -86463 | R31: =IF(L31=0,"0.0 ",ROUND((P31/L31)*100,1)) -> -1.2 | T31: ='Rate FT-LG'!AL73 -> 3332 | V31: ='Rate FT-LG'!AN73 -> 7378468 | X31: =IF(V31=0,"0.0 ",ROUND((P31/V31)*100,1)) -> -1.2
A32: 11 | C32: IT | D32: INTERRUPTIBLE TRANSP | F32: ='Rate IT'!X74 -> 226 | H32: ='Rate IT'!Z74 -> 1654919 | J32: =ROUND((L32/H32),4) -> 1.2002 | L32: ='Rate IT'!AD74 -> 1986270 | N32: =ROUND((L32/L$33)*100,2) -> 21.22 | P32: ='Rate IT'!AH74 -> 32768 | R32: =IF(L32=0,"0.0 ",ROUND((P32/L32)*100,1)) -> 1.6 | T32: ='Rate IT'!AL74 -> 0 | V32: ='Rate IT'!AN74 -> 1986270 | X32: =IF(V32=0,"0.0 ",ROUND((P32/V32)*100,1)) -> 1.6
A33: 12 | C33: TOTAL TRANSP SERVICE | F33: =SUM(F31:F32) -> 1963 | H33: =SUM(H31:H32) -> 4657105 | J33: =ROUND((L33/H33),4) -> 2.0101 | L33: =SUM(L31:L32) -> 9361406 | N33: =ROUND((L33/L$48)*100,2) -> 10.39 | P33: =SUM(P31:P32) -> -53695 | R33: =IF(L33=0,"0.0 ",ROUND((P33/L33)*100,1)) -> -0.6 | T33: =SUM(T31:T32) -> 3332 | V33: =SUM(V31:V32) -> 9364738 | X33: =IF(V33=0,"0.0 ",ROUND((P33/V33)*100,1)) -> -0.6
A34: 13 | C34: TOTAL THROUGHPUT | F34: =F28+F33 -> 1282764 | H34: =H28+H33 -> 14196822 | J34: =ROUND((L34/H34),4) -> 6.2709 | L34: =L28+L33 -> 89027233 | N34: =N28+N33 -> 98.77 | P34: =P28+P33 -> 20759559 | R34: =IF(L34=0,"0.0 ",ROUND((P34/L34)*100,1)) -> 23.3 | T34: =T28+T33 -> 63910850 | V34: =V28+V33 -> 152938083 | X34: =IF(V34=0,"0.0 ",ROUND((P34/V34)*100,1)) -> 13.6
A36: 14 | C36: MISCELLANEOUS REVENUES:
A37: 15 | C37: LATE PAYMENT CHARGES | F37: 0 | H37: 0 | L37: 358320 | N37: =ROUND((L37/L$46)*100,2) -> 32.27 | P37: ='SCH M-2.3'!L37-'SCH M-2.2'!L37 -> 0 | T37: 0 | V37: =L37+T37 -> 358320
A38: 16 | C38: BAD CHECK CHARGES | F38: 0 | H38: 0 | L38: 21480 | N38: 1.93 | P38: ='SCH M-2.3'!L38-'SCH M-2.2'!L38 -> 0 | T38: 0 | V38: =L38+T38 -> 21480
A39: 17 | C39: RECONNECTION CHARGES | F39: 0 | H39: 0 | L39: 8664 | N39: 0.78 | P39: ='SCH M-2.3'!L39-'SCH M-2.2'!L39 -> 1925 | T39: 0 | V39: 8664
A40: 18 | C40: FIELD COLLECTION CHARGES | F40: 0 | H40: 0 | L40: 0 | N40: 0 | P40: ='SCH M-2.3'!L40-'SCH M-2.2'!L40 -> 0 | T40: 0 | V40: 0
A41: 19 | C41: INTERDEPARTMENTAL | F41: 0 | H41: 4064 | L41: =ROUND(V41-(H41*EGC),0) -> 22605 | N41: =ROUND((L41/L$46)*100,2) -> 2.04 | P41: ='SCH M-2.3'!L41-'SCH M-2.2'!L41 -> 8370 | T41: =V41-L41 -> 27225 | V41: 49830
A42: 20 | C42: SPECIAL CONTRACTS | F42: 0 | H42: 0 | L42: 677460 | N42: 61.01 | P42: ='SCH M-2.3'!L42-'SCH M-2.2'!L42 -> 854599 | T42: 0 | V42: 677460
A43: 21 | C43: REVENUE TRANSP OF GAS-INTERCO | F43: 0 | H43: 0 | L43: 0 | N43: 0 | P43: ='SCH M-2.3'!L43-'SCH M-2.2'!L43 -> 0 | T43: 0 | V43: 0
A44: 22 | C44: PROVISION FOR RATE REFUNDS | F44: 0 | H44: 0 | L44: 0 | N44: 0 | P44: ='SCH M-2.3'!L44-'SCH M-2.2'!L44 -> 0 | T44: 0 | V44: =L44+T44 -> 0
A45: 23 | C45: OTHER MISC | F45: 0 | H45: 0 | L45: 21852 | N45: 1.97 | P45: ='SCH M-2.3'!L45-'SCH M-2.2'!L45 -> 0 | T45: 0 | V45: 21852
A46: 24 | C46: TOTAL MISC | F46: =SUM(F37:F45) -> 0 | H46: =SUM(H37:H45) -> 4064 | L46: =SUM(L37:L45) -> 1110381 | N46: =ROUND((L46/L$48)*100,2) -> 1.23 | P46: =SUM(P37:P45) -> 864894 | R46: =IF(L46=0,"0.0 ",ROUND((P46/L46)*100,1)) -> 77.9 | T46: =SUM(T37:T45) -> 27225 | V46: =SUM(V37:V45) -> 1137606 | X46: =IF(V46=0,"0.0 ",ROUND((P46/V46)*100,1)) -> 76
A48: 25 | C48: TOTAL COMPANY | F48: =F28+F33+F46 -> 1282764 | H48: =H28+H33+H46 -> 14200886 | J48: =ROUND((L48/H48),4) -> 6.3473 | L48: =L28+L33+L46 -> 90137614 | N48: 100 | P48: =P28+P33+P46 -> 21624453 | R48: =IF(L48=0,"0.0 ",ROUND((P48/L48)*100,1)) -> 24 | T48: =T28+T33+T46 -> 63938075 | V48: =V28+V33+V46 -> 154075689 | X48: =IF(V48=0,"0.0 ",ROUND((P48/V48)*100,1)) -> 14
C50: (1) DETAIL CONTAINED ON SCHEDULES M-2.2, PAGES 2 THROUGH 7.
C51: (2) REFLECTS NORMALIZED VOLUMES.
C52: ="(3) REFLECTS AVERAGE EXPECTED GAS COST OF "&TEXT(EGC,"$0.000")&"/MCF." -> (3) REFLECTS AVERAGE EXPECTED GAS COST OF $6.699/MCF.

Sheet SCH M-2.3
A1: =COMPANY -> DUKE ENERGY KENTUCKY
A2: =CASE -> CASE NO. 2025-00125
A3: ANNUALIZED REVENUES AT PROPOSED VS. MOST CURRENT RATES
A4: =TIME_PERIOD -> FOR THE TWELVE MONTHS ENDED DECEMBER 31, 2026
A5: =SERV_TYPE -> (GAS SERVICE)
A6: =DATA_TYPE -> DATA: ___ BASE PERIOD _X_FORECASTED PERIOD | R6: SCHEDULE M-2.3
A7: =FILING_TYPE -> TYPE OF FILING: _X_ ORIGINAL ___UPDATED ___ REVISED | R7: PAGE 1 OF 7
A8: WORK PAPER REFERENCE NO(S).: | R8: WITNESS:
A9: =TIME -> 12 MONTHS FORECASTED | F9: =INPUT!D4 -> INCLUDES ALL RIDERS | R9: =WIT -> B. L. Sailers
A10: PROPOSED ANNUALIZED
L12: PROPOSED | N12: % OF REV TO | R12: PROPOSED
L13: REVENUE LESS | N13: TOTAL LESS | R13: TOTAL
A14: LINE | C14: RATE | D14: CLASS / | F14: CUSTOMER | J14: PROPOSED | L14: GAS COST | N14: GAS COST | P14: GAS COST | R14: REVENUE
A15: NO. | C15: CODE | D15: DESCRIPTION | F15: BILLS(1) | H15: SALES(2) | J15: RATES | L15: REVENUE(4) | N15: REVENUE | P15: REVENUE(3) | R15: (F + H)
C16: (A) | D16: (B) | F16: (C) | H16: (D) | J16: (E) | L16: (F) | N16: (G) | P16: (H) | R16: (I)
H18: (MCF) | J18: ($/MCF) | L18: ($) | N18: (%) | P18: ($) | R18: ($)
A19: 1 | C19: SALES SERVICE:
A20: 2 | C20: RS | D20: RESIDENTIAL | F20: ='Rate RS'!F39 -> 1194296 | H20: ='Rate RS'!H39 -> 6130423 | J20: =IF(F20=0,"0.0 ",ROUND((L20/H20),4)) -> 12.2096 | L20: ='Rate RS'!L39 -> 74850177 | N20: =ROUND((L20/L$21)*100,2) -> 100 | P20: ='Rate RS'!P39 -> 41068317 | R20: ='Rate RS'!R39 -> 115918494
A21: 3 | D21: TOTAL RS | F21: =F20 -> 1194296 | H21: =H20 -> 6130423 | J21: =IF(F21=0,"0.0 ",ROUND((L21/H21),4)) -> 12.2096 | L21: =L20 -> 74850177 | N21: =ROUND((L21/L$48)*100,2) -> 66.97 | P21: =P20 -> 41068317 | R21: =R20 -> 115918494
A23: 4 | C23: GS | D23: COMMERCIAL | F23: ='Rate GS COM'!F38 -> 80932 | H23: ='Rate GS COM'!H38 -> 2939387 | J23: =IF(F23=0,"0.0 ",ROUND((L23/H23),4)) -> 7.6578 | L23: ='Rate GS COM'!L38 -> 22509197 | N23: =ROUND((L23/L$26)*100,2) -> 87.83 | P23: ='Rate GS COM'!P38 -> 19691247 | R23: ='Rate GS COM'!R38 -> 42200444
A24: 5 | C24: GS | D24: INDUSTRIAL | F24: ='Rate GS IND'!F38 -> 2047 | H24: ='Rate GS IND'!H38 -> 205705 | J24: =IF(F24=0,"0.0 ",ROUND((L24/H24),4)) -> 6.5149 | L24: ='Rate GS IND'!L38 -> 1340153 | N24: =ROUND((L24/L$26)*100,2) -> 5.23 | P24: ='Rate GS IND'!P38 -> 1378038 | R24: ='Rate GS IND'!R38 -> 2718191
A25: 6 | C25: GS | D25: OTH PUB AUTH | F25: ='Rate GS OPA'!F38 -> 3526 | H25: ='Rate GS OPA'!H38 -> 264202 | J25: =IF(F25=0,"0.0 ",ROUND((L25/H25),4)) -> 6.7356 | L25: ='Rate GS OPA'!L38 -> 1779554 | N25: =ROUND((L25/L$26)*100,2) -> 6.94 | P25: ='Rate GS OPA'!P38 -> 1769916 | R25: ='Rate GS OPA'!R38 -> 3549470
A26: 7 | D26: TOTAL GS | F26: =SUM(F23:F25) -> 86505 | H26: =SUM(H23:H25) -> 3409294 | J26: =IF(F26=0,"0.0 ",ROUND((L26/H26),4)) -> 7.5174 | L26: =SUM(L23:L25) -> 25628904 | N26: =ROUND((L26/L$48)*100,2) -> 22.93 | P26: =SUM(P23:P25) -> 22839201 | R26: =SUM(R23:R25) -> 48468105
A28: 8 | C28: TOTAL SALES SERVICE | F28: =F21+F26 -> 1280801 | H28: =H21+H26 -> 9539717 | J28: =IF(F28=0,"0.0 ",ROUND((L28/H28),4)) -> 10.5327 | L28: =L21+L26 -> 100479081 | N28: =ROUND((L28/L$48)*100,2) -> 89.9 | P28: =P21+P26 -> 63907518 | R28: =R21+R26 -> 164386599
A30: 9 | C30: TRANSPORTATION SERVICE:
A31: 10 | C31: FT-L | D31: FIRM TRANSP - LARGE | F31: ='Rate FT-LG'!F35 -> 1737 | H31: ='Rate FT-LG'!H35 -> 3002186 | J31: =IF(F31=0,"0.0 ",ROUND((L31/H31),4)) -> 2.4278 | L31: ='Rate FT-LG'!L35 -> 7288673 | N31: =ROUND((L31/L$33)*100,2) -> 78.31 | P31: ='Rate FT-LG'!P35 -> 3332 | R31: ='Rate FT-LG'!R35 -> 7292005
A32: 11 | C32: IT | D32: INTERRUPTIBLE TRANSP | F32: ='Rate IT'!F34 -> 226 | H32: ='Rate IT'!H34 -> 1654919 | J32: =IF(F32=0,"0.0 ",ROUND((L32/H32),4)) -> 1.22 | L32: ='Rate IT'!L34 -> 2019038 | N32: =ROUND((L32/L$33)*100,2) -> 21.69 | P32: ='Rate IT'!P34 -> 0 | R32: ='Rate IT'!R34 -> 2019038
A33: 12 | C33: TOTAL TRANSP SERVICE | F33: =SUM(F31:F32) -> 1963 | H33: =SUM(H31:H32) -> 4657105 | J33: =IF(F33=0,"0.0 ",ROUND((L33/H33),4)) -> 1.9986 | L33: =SUM(L31:L32) -> 9307711 | N33: =ROUND((L33/L$48)*100,2) -> 8.33 | P33: =SUM(P31:P32) -> 3332 | R33: =SUM(R31:R32) -> 9311043
A34: 13 | C34: TOTAL THROUGHPUT | F34: =F28+F33 -> 1282764 | H34: =H28+H33 -> 14196822 | J34: =IF(F34=0,"0.0 ",ROUND((L34/H34),4)) -> 7.7332 | L34: =L28+L33 -> 109786792 | N34: =N28+N33 -> 98.23 | P34: =P28+P33 -> 63910850 | R34: =R28+R33 -> 173697642
A36: 14 | C36: MISCELLANEOUS REVENUES:
A37: 15 | C37: LATE PAYMENT CHARGES | F37: 0 | H37: 0 | L37: ='SCH M-2.2'!L37 -> 358320 | N37: =ROUND((L37/L$46)*100,2) -> 18.14 | P37: 0 | R37: =L37+P37 -> 358320
A38: 16 | C38: BAD CHECK CHARGES | F38: 0 | H38: 0 | L38: ='SCH M-2.2'!L38 -> 21480 | N38: 1.09 | P38: 0 | R38: 21480
A39: 17 | C39: RECONNECTION CHARGES | F39: 0 | H39: 0 | L39: =ROUND('SCH M-2.2'!L39*1.2222,0) -> 10589 | N39: 0.54 | P39: 0 | R39: 10589
A40: 18 | C40: FIELD COLLECTION CHARGES | F40: 0 | H40: 0 | L40: ='SCH M-2.2'!L40 -> 0 | N40: 0 | P40: 0 | R40: 0
A41: 19 | C41: INTERDEPARTMENTAL | F41: ='SCH M-2.2'!F41 -> 0 | H41: ='SCH M-2.2'!H41 -> 4064 | L41: =R41-P41 -> 30975 | N41: 1.57 | P41: ='SCH M-2.2'!T41 -> 27225 | R41: ='Proposed Rates'!G30 -> 58200
A42: 20 | C42: SPECIAL CONTRACTS | F42: ='SCH M-2.2'!F42 -> 0 | H42: ='SCH M-2.2'!H42 -> 0 | L42: 1532059 | N42: 77.56 | P42: 0 | R42: 1532059
A43: 21 | C43: REVENUE TRANSP OF GAS-INTERCO | F43: 0 | H43: ='SCH M-2.2'!H43 -> 0 | L43: ='SCH M-2.2'!L43 -> 0 | N43: 0 | P43: 0 | R43: 0
A44: 22 | C44: PROVISION FOR RATE REFUNDS | F44: 0 | H44: ='SCH M-2.2'!H44 -> 0 | L44: ='SCH M-2.2'!L44 -> 0 | N44: 0 | P44: 0 | R44: 0
A45: 23 | C45: OTHER MISC | F45: 0 | H45: 0 | L45: ='SCH M-2.2'!L45 -> 21852 | N45: 1.11 | P45: 0 | R45: 21852
A46: 24 | C46: TOTAL MISC | F46: =SUM(F37:F45) -> 0 | H46: =SUM(H37:H45) -> 4064 | L46: =SUM(L37:L45) -> 1975275 | N46: =ROUND((L46/L$48)*100,2) -> 1.77 | P46: =SUM(P37:P45) -> 27225 | R46: =SUM(R37:R45) -> 2002500
A48: 25 | C48: TOTAL COMPANY | F48: =F28+F33+F46 -> 1282764 | H48: =H28+H33+H46 -> 14200886 | J48: =IF(F48=0,"0.0 ",ROUND((L48/H48),4)) -> 7.8701 | L48: =L28+L33+L46 -> 111762067 | N48: 100 | P48: =P28+P33+P46 -> 63938075 | R48: =R28+R33+R46 -> 175700142
C50: (1) DETAIL CONTAINED ON SCHEDULES M-2.3, PAGES 2 THROUGH 7.
C51: (2) REFLECTS NORMALIZED VOLUMES.
C52: ="(3) REFLECTS AVERAGE EXPECTED GAS COST OF "&TEXT(EGC,"$0.000")&"/MCF." -> (3) REFLECTS AVERAGE EXPECTED GAS COST OF $6.699/MCF.

Sheet Rate RS
A1: =COMPANY -> DUKE ENERGY KENTUCKY
A2: =CASE -> CASE NO. 2025-00125
A3: ANNUALIZED REVENUES AT PROPOSED VS. MOST CURRENT RATES
A4: =TIME_PERIOD -> FOR THE TWELVE MONTHS ENDED DECEMBER 31, 2026
A5: =SERV_TYPE -> (GAS SERVICE)
A6: =DATA_TYPE -> DATA: ___ BASE PERIOD _X_FORECASTED PERIOD | R6: SCHEDULE M-2.3
A7: =FILING_TYPE -> TYPE OF FILING: _X_ ORIGINAL ___UPDATED ___ REVISED | R7: PAGE 2 OF 7
A8: WORK PAPER REFERENCE NO(S).: | R8: WITNESS:
A9: =TIME -> 12 MONTHS FORECASTED | R9: =WIT -> B. L. Sailers
A10: PROPOSED ANNUALIZED
L12: PROPOSED | N12: % OF REV TO | R12: PROPOSED
L13: REVENUE LESS | N13: TOTAL LESS | R13: TOTAL
A14: LINE | C14: RATE | D14: CLASS / | F14: CUSTOMER | J14: PROPOSED | L14: GAS COST | N14: GAS COST | P14: GAS COST | R14: REVENUE
A15: NO. | C15: CODE | D15: DESCRIPTION | F15: BILLS(1) | H15: SALES(2) | J15: RATES | L15: REVENUE | N15: REVENUE | P15: REVENUE(3) | R15: (F + H)
C16: (A) | D16: (B) | F16: (C) | H16: (D) | J16: (E) | L16: (F) | N16: (G) | P16: (H) | R16: (I)
H18: (MCF) | J18: ($/MCF) | L18: ($) | N18: (%) | P18: ($) | R18: ($)
A19: 1 | C19: RS | D19: RESIDENTIAL
A21: 2 | C21: CUSTOMER CHARGE:
A22: 3 | C22: RESIDENTIAL
A23: 4 | C23: TOTAL MONTHLY BILLS x :
A24: 5 | C24: CUSTOMER CHARGE PER MONTH | F24: =1193286+(202*5) -> 1194296 | J24: =PRO_RS_CUST -> 20 | L24: =ROUND(F24*J24,0) -> 23885920 | N24: =ROUND((L24/$L$39)*100,1) -> 31.9 | R24: =L24+P24 -> 23885920
A26: 6 | C26: COMMODITY CHARGE:
A27: 7 | C27: ALL CONSUMPTION | H27: 6130423 | J27: =PRO_RS_COM -> 7.0424 | L27: =ROUND((H27*J27),0) -> 43172891 | N27: =ROUND((L27/$L$39)*100,1) -> 57.7 | P27: =ROUND(H27*EGC,0) -> 41068317 | R27: =L27+P27 -> 84241208
A29: 8 | C29: RATE RS EXCLUDING RIDERS | F29: =F24 -> 1194296 | H29: =H27 -> 6130423 | L29: =SUM(L24:L27) -> 67058811 | N29: =ROUND((L29/$L$39)*100,1) -> 89.6 | P29: =SUM(P24:P27) -> 41068317 | R29: =SUM(R24:R27) -> 108127128
A31: 9 | C31: RIDERS:
A32: 10 | C32: HOME ENERGY ASSISTANCE PROGRAM (HEA) | J32: =PRO_RS_HEA -> 0.3 | L32: =ROUND(F24*PRO_RS_HEA,0) -> 358289 | N32: =ROUND((L32/$L$39)*100,1) -> 0.5 | R32: =L32+P32 -> 358289
A33: 11 | C33: DEMAND SIDE MANAGEMENT RATE (DSMR) | J33: =PRO_RS_DSM -> 0.01249 | L33: =ROUND(H27*J33,0) -> 76569 | N33: =ROUND((L33/$L$39)*100,1) -> 0.1 | R33: =L33+P33 -> 76569
A34: 12 | C34: WEATHER NORMALIZATION ADJUSTMENT (WNA) | J34: 0 | L34: =ROUND(H29*J34,0) -> 0 | N34: =ROUND((L34/$L$39)*100,1) -> 0 | R34: =L34+P34 -> 0
A35: 13 | C35: PIPELINE MODERNIZATION MECHANISM (PMM) | J35: =PRO_RS_PMM -> 1.2 | L35: =ROUND(H29*J35,0) -> 7356508 | N35: =ROUND((L35/$L$39)*100,1) -> 9.8 | R35: =L35+P35 -> 7356508
A37: 14 | C37: TOTAL RIDERS | L37: =SUM(L32:L35) -> 7791366 | N37: =ROUND((L37/$L$39)*100,1) -> 10.4 | R37: =SUM(R32:R35) -> 7791366
A39: 15 | C39: TOTAL RATE RS RESIDENTIAL INCLUDING RIDERS | F39: =F24 -> 1194296 | H39: =H27 -> 6130423 | L39: =L29+L37 -> 74850177 | N39: =SUM(N29+N37) -> 100 | P39: =P29+P37 -> 41068317 | R39: =R29+R37 -> 115918494
C41: (1) BILLS THAT TERMINATE IN RESPECTIVE RATE STEPS.
C42: (2) REFLECTS NORMALIZED VOLUMES.
C43: ="(3) REFLECTS AVERAGE EXPECTED GAS COST OF "&TEXT(EGC,"$0.000")&"/MCF." -> (3) REFLECTS AVERAGE EXPECTED GAS COST OF $6.699/MCF. | T43: =COMPANY -> DUKE ENERGY KENTUCKY
T44: =CASE -> CASE NO. 2025-00125
T45: ANNUALIZED TEST YEAR REVENUES AT PROPOSED VS. MOST CURRENT RATES
T46: =TIME_PERIOD -> FOR THE TWELVE MONTHS ENDED DECEMBER 31, 2026
T47: =SERV_TYPE -> (GAS SERVICE)
T48: =DATA_TYPE -> DATA: ___ BASE PERIOD _X_FORECASTED PERIOD | AN48: SCHEDULE M-2.2
T49: =FILING_TYPE -> TYPE OF FILING: _X_ ORIGINAL ___UPDATED ___ REVISED | AN49: =R7 -> PAGE 2 OF 7
T50: WORK PAPER REFERENCE NO(S).: | AN50: WITNESS:
T51: =TIME -> 12 MONTHS FORECASTED | AN51: =WIT -> B. L. Sailers
AD52: CURRENT ANNUALIZED
AD54: CURRENT | AF54: % OF REV TO | AH54: REVENUE | AJ54: % INCR IN | AN54: CURRENT | AP54: TOTAL
AB55: MOST | AD55: REVENUE LESS | AF55: TOTAL LESS | AH55: INCR LESS | AJ55: REV LESS | AN55: TOTAL | AP55: REVENUE
T56: LINE | V56: RATE | W56: CLASS / | X56: CUSTOMER | AB56: CURRENT | AD56: GAS COST | AF56: GAS COST | AH56: GAS COST REV | AJ56: GAS COST REV | AL56: GAS COST | AN56: REVENUE | AP56: % INCREASE
T57: NO. | V57: CODE | W57: DESCRIPTION | X57: BILLS(1) | Z57: SALES(2) | AB57: RATES | AD57: REVENUE | AF57: REVENUE | AH57: (F - K) | AJ57: (M / K) | AL57: REVENUE(3) | AN57: (K + H) | AP57: (M / K1)
V58: (A) | W58: (B) | X58: (C) | Z58: (D) | AB58: (J) | AD58: (K) | AF58: (L) | AH58: (M) | AJ58: (N) | AL58: (H) | AN58: (K1) | AP58: (O)
Z60: (MCF) | AB60: ($/MCF) | AD60: ($) | AF60: (%) | AH60: ($) | AJ60: (%) | AL60: ($) | AN60: ($) | AP60: (%)
T61: 1 | V61: RS | W61: RESIDENTIAL
T63: 2 | V63: CUSTOMER CHARGE:
T64: 3 | V64: RESIDENTIAL
T65: 4 | V65: TOTAL MONTHLY BILLS x :
T66: 5 | V66: CUSTOMER CHARGE PER MONTH | X66: =F24 -> 1194296 | AB66: =CUR_RS_CUST -> 17.5 | AD66: =ROUND(X66*AB66,0) -> 20900180 | AF66: =ROUND((AD66/$AD$81)*100,1) -> 34.3 | AH66: =L24-AD66 -> 2985740 | AJ66: =IF(AD66=0,"0.0 ",ROUND((AH66/AD66)*100,1)) -> 14.3 | AN66: =AD66+AL66 -> 20900180 | AP66: =IF(AN66=0,"0.0 ",ROUND((AH66/AN66)*100,1)) -> 14.3
T68: 6 | V68: COMMODITY CHARGE:
T69: 7 | V69: ALL CONSUMPTION | Z69: =H27 -> 6130423 | AB69: =CUR_RS -> 5.2474 | AD69: =ROUND((Z69*AB69),0) -> 32168782 | AF69: =ROUND((AD69/$AD$81)*100,1) -> 52.9 | AH69: =L27-AD69 -> 11004109 | AJ69: =IF(AD69=0,"0.0 ",ROUND((AH69/AD69)*100,1)) -> 34.2 | AL69: =P27 -> 41068317 | AN69: =AD69+AL69 -> 73237099 | AP69: =IF(AN69=0,"0.0 ",ROUND((AH69/AN69)*100,1)) -> 15
T71: 8 | V71: RATE RS EXCLUDING RIDERS | X71: =X66 -> 1194296 | Z71: =Z69 -> 6130423 | AD71: =SUM(AD66:AD69) -> 53068962 | AF71: =ROUND((AD71/$AD$81)*100,1) -> 87.2 | AH71: =SUM(AH66:AH69) -> 13989849 | AJ71: =IF(AD71=0,"0.0 ",ROUND((AH71/AD71)*100,1)) -> 26.4 | AL71: =SUM(AL66:AL69) -> 41068317 | AN71: =SUM(AN66:AN69) -> 94137279 | AP71: =IF(AN71=0,"0.0 ",ROUND((AH71/AN71)*100,1)) -> 14.9
T73: 9 | V73: RIDERS:
T74: 10 | V74: HOME ENERGY ASSISTANCE PROGRAM (HEA) | AB74: =CUR_RS_HEA -> 0.3 | AD74: =ROUND(X66*CUR_RS_HEA,0) -> 358289 | AF74: =ROUND((AD74/$AD$81)*100,1) -> 0.6 | AH74: =L32-AD74 -> 0 | AJ74: =IF(AD74=0,"0.0 ",ROUND((AH74/AD74)*100,1)) -> 0 | AN74: =AD74+AL74 -> 358289 | AP74: =IF(AN74=0,"0.0 ",ROUND((AH74/AN74)*100,1)) -> 0
T75: 11 | V75: DEMAND SIDE MANAGEMENT RATE (DSMR) | AB75: =CUR_RS_DSM -> 0.01249 | AD75: =ROUND(Z69*AB75,0) -> 76569 | AF75: =ROUND((AD75/$AD$81)*100,1) -> 0.1 | AH75: =L33-AD75 -> 0 | AJ75: =IF(AD75=0,"0.0 ",ROUND((AH75/AD75)*100,1)) -> 0 | AN75: =AD75+AL75 -> 76569 | AP75: =IF(AN75=0,"0.0 ",ROUND((AH75/AN75)*100,1)) -> 0
T76: =A34 -> 12 | V76: WEATHER NORMALIZATION ADJUSTMENT (WNA) | AB76: 0 | AD76: =ROUND(Z71*AB76,0) -> 0 | AF76: =ROUND((AD76/$AD$81)*100,1) -> 0 | AH76: =L34-AD76 -> 0 | AJ76: =IF(AD76=0,"0.0 ",ROUND((AH76/AD76)*100,1)) -> 0.0 | AN76: =AD76+AL76 -> 0 | AP76: =IF(AN76=0,"0.0 ",ROUND((AH76/AN76)*100,1)) -> 0.0
T77: 13 | V77: PIPELINE MODERNIZATION MECHANISM (PMM) | AB77: =CUR_RS_PMM -> 1.2 | AD77: =ROUND(Z71*AB77,0) -> 7356508 | AF77: =ROUND((AD77/$AD$81)*100,1) -> 12.1 | AH77: =L35-AD77 -> 0 | AJ77: 0 | AN77: 7356508 | AP77: 0
T79: =A37 -> 14 | V79: TOTAL RIDERS | AD79: =SUM(AD74:AD77) -> 7791366 | AF79: =ROUND((AD79/$AD$81)*100,1) -> 12.8 | AH79: =SUM(AH74:AH77) -> 0 | AJ79: =IF(AD79=0,"0.0 ",ROUND((AH79/AD79)*100,1)) -> 0 | AN79: =SUM(AN74:AN77) -> 7791366 | AP79: =IF(AN79=0,"0.0 ",ROUND((AH79/AN79)*100,1)) -> 0
T81: =A39 -> 15 | V81: TOTAL RATE RS RESIDENTIAL INCLUDING RIDERS | X81: =X66 -> 1194296 | Z81: =Z69 -> 6130423 | AD81: =AD71+AD79 -> 60860328 | AF81: =SUM(AF71+AF79) -> 100 | AH81: =AH71+AH79 -> 13989849 | AJ81: =IF(AD81=0,"0.0 ",ROUND((AH81/AD81)*100,1)) -> 23 | AL81: =P39 -> 41068317 | AN81: =AN71+AN79 -> 101928645 | AP81: =IF(AN81=0,"0.0 ",ROUND((AH81/AN81)*100,1)) -> 13.7
V83: (1) BILLS THAT TERMINATE IN RESPECTIVE RATE STEPS.
V84: (2) REFLECTS NORMALIZED VOLUMES.
V85: ="(3) REFLECTS AVERAGE EXPECTED GAS COST OF "&TEXT(EGC,"$0.000")&"/MCF." -> (3) REFLECTS AVERAGE EXPECTED GAS COST OF $6.699/MCF.

Sheet Rate GS COM
A1: =COMPANY -> DUKE ENERGY KENTUCKY
A2: =CASE -> CASE NO. 2025-00125
A3: ANNUALIZED REVENUES AT PROPOSED VS. MOST CURRENT RATES
A4: =TIME_PERIOD -> FOR THE TWELVE MONTHS ENDED DECEMBER 31, 2026
A5: =SERV_TYPE -> (GAS SERVICE)
A6: =DATA_TYPE -> DATA: ___ BASE PERIOD _X_FORECASTED PERIOD | R6: SCHEDULE M-2.3
A7: =FILING_TYPE -> TYPE OF FILING: _X_ ORIGINAL ___UPDATED ___ REVISED | R7: PAGE 3 OF 7
A8: WORK PAPER REFERENCE NO(S).: | R8: WITNESS:
A9: =TIME -> 12 MONTHS FORECASTED | R9: =WIT -> B. L. Sailers
A10: PROPOSED ANNUALIZED
L12: PROPOSED | N12: % OF REV TO | R12: PROPOSED
L13: REVENUE LESS | N13: TOTAL LESS | R13: TOTAL
A14: LINE | C14: RATE | D14: CLASS / | F14: CUSTOMER | J14: PROPOSED | L14: GAS COST | N14: GAS COST | P14: GAS COST | R14: REVENUE
A15: NO. | C15: CODE | D15: DESCRIPTION | F15: BILLS(1) | H15: SALES(2) | J15: RATES | L15: REVENUE | N15: REVENUE | P15: REVENUE(3) | R15: (F + H)
C16: (A) | D16: (B) | F16: (C) | H16: (D) | J16: (E) | L16: (F) | N16: (G) | P16: (H) | R16: (I)
H18: (MCF) | J18: ($/MCF) | L18: ($) | N18: (%) | P18: ($) | R18: ($)
A19: 1 | C19: GS | D19: COMMERCIAL
A21: 2 | C21: CUSTOMER CHARGE:
A22: 3 | C22: NON-RESIDENTIAL
A23: 4 | C23: TOTAL MONTHLY BILLS x :
A24: 5 | C24: CUSTOMER CHARGE PER MONTH | F24: 80932 | J24: =PRO_GS_CUST -> 65 | L24: =ROUND(F24*J24,0) -> 5260580 | N24: =ROUND((L24/$L$38)*100,1) -> 23.4 | R24: =L24+P24 -> 5260580
A26: 6 | C26: COMMODITY CHARGE:
A27: 7 | C27: ALL CONSUMPTION | H27: 2939387 | J27: =PRO_GS -> 5.5681 | L27: =ROUND((H27*J27),0) -> 16366801 | N27: =ROUND((L27/$L$38)*100,1) -> 72.7 | P27: =ROUND(H27*EGC,0) -> 19691247 | R27: =L27+P27 -> 36058048
A29: 8 | C29: RATE GS COMMERCIAL EXCLUDING RIDERS | F29: =F24 -> 80932 | H29: =H27 -> 2939387 | L29: =SUM(L24:L27) -> 21627381 | N29: =ROUND((L29/$L$38)*100,1) -> 96.1 | P29: =SUM(P24:P27) -> 19691247 | R29: =SUM(R24:R27) -> 41318628
A31: 9 | C31: RIDERS:
A32: 10 | C32: DEMAND SIDE MANAGEMENT RATE (DSMR) | J32: =PRO_GS_DSM -> 0 | L32: =ROUND(H27*J32,0) -> 0 | N32: =ROUND((L32/$L$38)*100,1) -> 0 | R32: =L32+P32 -> 0
A33: 11 | C33: WEATHER NORMALIZATION ADJUSTMENT (WNA) | J33: 0 | L33: =ROUND(H29*J33,0) -> 0 | N33: =ROUND((L33/$L$38)*100,1) -> 0 | R33: =L33+P33 -> 0
A34: 12 | C34: PIPELINE MODERNIZATION MECHANISM (PMM) | J34: =PRO_GS_PMM -> 0.3 | L34: =ROUND(H29*J34,0) -> 881816 | N34: =ROUND((L34/$L$38)*100,1) -> 3.9 | R34: =L34+P34 -> 881816
A36: 13 | C36: TOTAL RIDERS | L36: =SUM(L31:L34) -> 881816 | N36: =ROUND((L36/$L$38)*100,1) -> 3.9 | R36: =SUM(R31:R34) -> 881816
A38: 14 | C38: TOTAL RATE GS COMMERCIAL INCLUDING RIDERS | F38: =F24 -> 80932 | H38: =H27 -> 2939387 | L38: =L29+L36 -> 22509197 | N38: =N29+N36 -> 100 | P38: =P29+P36 -> 19691247 | R38: =R29+R36 -> 42200444
C40: (1) BILLS THAT TERMINATE IN RESPECTIVE RATE STEPS.
C41: (2) REFLECTS NORMALIZED VOLUMES.
C42: ="(3) REFLECTS AVERAGE EXPECTED GAS COST OF "&TEXT(EGC,"$0.000")&"/MCF." -> (3) REFLECTS AVERAGE EXPECTED GAS COST OF $6.699/MCF. | T42: =COMPANY -> DUKE ENERGY KENTUCKY
T43: =CASE -> CASE NO. 2025-00125
T44: ANNUALIZED TEST YEAR REVENUES AT PROPOSED VS. MOST CURRENT RATES
T45: =TIME_PERIOD -> FOR THE TWELVE MONTHS ENDED DECEMBER 31, 2026
T46: =SERV_TYPE -> (GAS SERVICE)
T47: =DATA_TYPE -> DATA: ___ BASE PERIOD _X_FORECASTED PERIOD | AN47: SCHEDULE M-2.2
T48: =FILING_TYPE -> TYPE OF FILING: _X_ ORIGINAL ___UPDATED ___ REVISED | AN48: =R7 -> PAGE 3 OF 7
T49: WORK PAPER REFERENCE NO(S).: | AN49: WITNESS:
T50: =TIME -> 12 MONTHS FORECASTED | AN50: =WIT -> B. L. Sailers
AD51: CURRENT ANNUALIZED
AD53: CURRENT | AF53: % OF REV TO | AH53: REVENUE | AJ53: % INCR IN | AN53: CURRENT | AP53: TOTAL
AB54: MOST | AD54: REVENUE LESS | AF54: TOTAL LESS | AH54: INCR LESS | AJ54: REV LESS | AN54: TOTAL | AP54: REVENUE
T55: LINE | V55: RATE | W55: CLASS / | X55: CUSTOMER | AB55: CURRENT | AD55: GAS COST | AF55: GAS COST | AH55: GAS COST REV | AJ55: GAS COST REV | AL55: GAS COST | AN55: REVENUE | AP55: % INCREASE
T56: NO. | V56: CODE | W56: DESCRIPTION | X56: BILLS(1) | Z56: SALES(2) | AB56: RATES | AD56: REVENUE | AF56: REVENUE | AH56: (F - K) | AJ56: (M / K) | AL56: REVENUE(3) | AN56: (K + H) | AP56: (M / K1)
V57: (A) | W57: (B) | X57: (C) | Z57: (D) | AB57: (J) | AD57: (K) | AF57: (L) | AH57: (M) | AJ57: (N) | AL57: (H) | AN57: (K1) | AP57: (O)
Z59: (MCF) | AB59: ($/MCF) | AD59: ($) | AF59: (%) | AH59: ($) | AJ59: (%) | AL59: ($) | AN59: ($) | AP59: (%)
T60: 1 | V60: GS | W60: COMMERCIAL
T62: 2 | V62: CUSTOMER CHARGE:
T63: 3 | V63: NON-RESIDENTIAL
T64: 4 | V64: TOTAL MONTHLY BILLS x :
T65: 5 | V65: CUSTOMER CHARGE PER MONTH | X65: =F24 -> 80932 | AB65: =CUR_GS_CUST -> 58 | AD65: =ROUND(X65*AB65,0) -> 4694056 | AF65: =ROUND((AD65/$AD$79)*100,1) -> 28.3 | AH65: =L24-AD65 -> 566524 | AJ65: =IF(AD65=0,"0.0 ",ROUND((AH65/AD65)*100,1)) -> 12.1 | AN65: =AD65+AL65 -> 4694056 | AP65: =IF(AN65=0,"0.0 ",ROUND((AH65/AN65)*100,1)) -> 12.1
T67: 6 | V67: COMMODITY CHARGE:
T68: 7 | V68: ALL CONSUMPTION | Z68: =H27 -> 2939387 | AB68: =CUR_GS -> 3.7443 | AD68: =ROUND((Z68*AB68),0) -> 11005947 | AF68: =ROUND((AD68/$AD$79)*100,1) -> 66.4 | AH68: =L27-AD68 -> 5360854 | AJ68: =IF(AD68=0,"0.0 ",ROUND((AH68/AD68)*100,1)) -> 48.7 | AL68: =P27 -> 19691247 | AN68: =AD68+AL68 -> 30697194 | AP68: =IF(AN68=0,"0.0 ",ROUND((AH68/AN68)*100,1)) -> 17.5
T70: 8 | V70: RATE GS COMMERCIAL EXCLUDING RIDERS | X70: =X65 -> 80932 | Z70: =Z68 -> 2939387 | AD70: =SUM(AD65:AD68) -> 15700003 | AF70: =ROUND((AD70/$AD$79)*100,1) -> 94.7 | AH70: =SUM(AH65:AH68) -> 5927378 | AJ70: =IF(AD70=0,"0.0 ",ROUND((AH70/AD70)*100,1)) -> 37.8 | AL70: =SUM(AL65:AL68) -> 19691247 | AN70: =SUM(AN65:AN68) -> 35391250 | AP70: =IF(AN70=0,"0.0 ",ROUND((AH70/AN70)*100,1)) -> 16.7
T72: 9 | V72: RIDERS:
T73: 10 | V73: =C32 -> DEMAND SIDE MANAGEMENT RATE (DSMR) | AB73: =CUR_GS_DSM -> 0 | AD73: =ROUND(Z68*AB73,0) -> 0 | AF73: =ROUND((AD73/$AD$79)*100,1) -> 0 | AH73: =L32-AD73 -> 0 | AJ73: =IF(AD73=0,"0.0 ",ROUND((AH73/AD73)*100,1)) -> 0.0 | AN73: =AD73+AL73 -> 0 | AP73: =IF(AN73=0,"0.0 ",ROUND((AH73/AN73)*100,1)) -> 0.0
T74: =A33 -> 11 | V74: WEATHER NORMALIZATION ADJUSTMENT (WNA) | AB74: 0 | AD74: =ROUND(Z70*AB74,0) -> 0 | AF74: =ROUND((AD74/$AD$79)*100,1) -> 0 | AH74: =L33-AD74 -> 0 | AJ74: =IF(AD74=0,"0.0 ",ROUND((AH74/AD74)*100,1)) -> 0.0 | AN74: =AD74+AL74 -> 0 | AP74: =IF(AN74=0,"0.0 ",ROUND((AH74/AN74)*100,1)) -> 0.0
T75: 12 | V75: =C34 -> PIPELINE MODERNIZATION MECHANISM (PMM) | AB75: =CUR_GS_PMM -> 0.3 | AD75: =ROUND(Z70*AB75,0) -> 881816 | AF75: =ROUND((AD75/$AD$79)*100,1) -> 5.3 | AH75: =L34-AD75 -> 0 | AJ75: =IF(AD75=0,"0.0 ",ROUND((AH75/AD75)*100,1)) -> 0 | AN75: =AD75+AL75 -> 881816 | AP75: =IF(AN75=0,"0.0 ",ROUND((AH75/AN75)*100,1)) -> 0
T77: =A36 -> 13 | V77: TOTAL RIDERS | AD77: =SUM(AD72:AD75) -> 881816 | AF77: =ROUND((AD77/$AD$79)*100,1) -> 5.3 | AH77: =SUM(AH72:AH75) -> 0 | AJ77: =IF(AD77=0,"0.0 ",ROUND((AH77/AD77)*100,1)) -> 0 | AN77: =SUM(AN72:AN75) -> 881816 | AP77: =IF(AN77=0,"0.0 ",ROUND((AH77/AN77)*100,1)) -> 0
T79: =A38 -> 14 | V79: TOTAL RATE GS COMMERCIAL INCLUDING RIDERS | X79: =X65 -> 80932 | Z79: =Z68 -> 2939387 | AD79: =AD70+AD77 -> 16581819 | AF79: =AF70+AF77 -> 100 | AH79: =AH70+AH77 -> 5927378 | AJ79: =IF(AD79=0,"0.0 ",ROUND((AH79/AD79)*100,1)) -> 35.7 | AL79: =P38 -> 19691247 | AN79: =AN70+AN77 -> 36273066 | AP79: =IF(AN79=0,"0.0 ",ROUND((AH79/AN79)*100,1)) -> 16.3
V81: (1) BILLS THAT TERMINATE IN RESPECTIVE RATE STEPS.
V82: (2) REFLECTS NORMALIZED VOLUMES.
V83: ="(3) REFLECTS AVERAGE EXPECTED GAS COST OF "&TEXT(EGC,"$0.000")&"/MCF." -> (3) REFLECTS AVERAGE EXPECTED GAS COST OF $6.699/MCF.
Z200: *** MENU ***
X202: ROUTINE | AD202: ENTER
X203: - | AD203: -
W204: PRINT SCHEDULES E-4 and E-4.1 | AD204: ALT A
W206: PRINT SCHEDULE E-5 | AD206: ALT B
W208: SAVE FILE | X208: (NOTE: MUST USE WHEN SAVING FILE) | AD208: ALT S
W210: GO TO MENU | AD210: ALT M
W212: RANGE NAME INDEX | AD212: ALT I

Sheet Rate GS IND
A1: =COMPANY -> DUKE ENERGY KENTUCKY
A2: =CASE -> CASE NO. 2025-00125
A3: ANNUALIZED REVENUES AT PROPOSED VS. MOST CURRENT RATES
A4: =TIME_PERIOD -> FOR THE TWELVE MONTHS ENDED DECEMBER 31, 2026
A5: =SERV_TYPE -> (GAS SERVICE)
A6: =DATA_TYPE -> DATA: ___ BASE PERIOD _X_FORECASTED PERIOD | R6: SCHEDULE M-2.3
A7: =FILING_TYPE -> TYPE OF FILING: _X_ ORIGINAL ___UPDATED ___ REVISED | R7: PAGE 4 OF 7
A8: WORK PAPER REFERENCE NO(S).: | R8: WITNESS:
A9: =TIME -> 12 MONTHS FORECASTED | R9: =WIT -> B. L. Sailers
A10: PROPOSED ANNUALIZED
L12: PROPOSED | N12: % OF REV TO | R12: PROPOSED
L13: REVENUE LESS | N13: TOTAL LESS | R13: TOTAL
A14: LINE | C14: RATE | D14: CLASS / | F14: CUSTOMER | J14: PROPOSED | L14: GAS COST | N14: GAS COST | P14: GAS COST | R14: REVENUE
A15: NO. | C15: CODE | D15: DESCRIPTION | F15: BILLS(1) | H15: SALES(2) | J15: RATES | L15: REVENUE | N15: REVENUE | P15: REVENUE(3) | R15: (F + H)
C16: (A) | D16: (B) | F16: (C) | H16: (D) | J16: (E) | L16: (F) | N16: (G) | P16: (H) | R16: (I)
H18: (MCF) | J18: ($/MCF) | L18: ($) | N18: (%) | P18: ($) | R18: ($)
A19: 1 | C19: GS | D19: INDUSTRIAL
A21: 2 | C21: CUSTOMER CHARGE:
A22: 3 | C22: NON-RESIDENTIAL
A23: 4 | C23: TOTAL MONTHLY BILLS x :
A24: 5 | C24: CUSTOMER CHARGE PER MONTH | F24: 2047 | J24: =PRO_GS_CUST -> 65 | L24: =ROUND(F24*J24,0) -> 133055 | N24: =ROUND((L24/$L$38)*100,1) -> 9.9 | R24: =L24+P24 -> 133055
A26: 6 | C26: COMMODITY CHARGE:
A27: 7 | C27: ALL CONSUMPTION | H27: 205705 | J27: =PRO_GS -> 5.5681 | L27: =ROUND((H27*J27),0) -> 1145386 | N27: =ROUND((L27/$L$38)*100,1) -> 85.5 | P27: =ROUND(EGC*$H27,0) -> 1378038 | R27: =L27+P27 -> 2523424
A29: 8 | C29: RATE GS INDUSTRIAL EXCLUDING RIDERS | F29: =F24 -> 2047 | H29: =H27 -> 205705 | L29: =SUM(L24:L27) -> 1278441 | N29: =ROUND((L29/$L$38)*100,1) -> 95.4 | P29: =SUM(P24:P27) -> 1378038 | R29: =SUM(R24:R27) -> 2656479
A31: 9 | C31: RIDERS:
A32: 10 | C32: DEMAND SIDE MANAGEMENT RATE (DSMR) | J32: =PRO_GS_DSM -> 0 | L32: =ROUND(H27*J32,0) -> 0 | N32: =ROUND((L32/$L$38)*100,1) -> 0 | R32: =L32+P32 -> 0
A33: 11 | C33: WEATHER NORMALIZATION ADJUSTMENT (WNA) | J33: 0 | L33: =ROUND(H29*J33,0) -> 0 | N33: =ROUND((L33/$L$38)*100,1) -> 0 | R33: =L33+P33 -> 0
A34: 12 | C34: PIPELINE MODERNIZATION MECHANISM (PMM) | J34: =PRO_GS_PMM -> 0.3 | L34: =ROUND(H29*J34,0) -> 61712 | N34: =ROUND((L34/$L$38)*100,1) -> 4.6 | R34: =L34+P34 -> 61712
A36: 13 | C36: TOTAL RIDERS | L36: =SUM(L31:L34) -> 61712 | N36: =ROUND((L36/$L$38)*100,1) -> 4.6 | R36: =SUM(R31:R34) -> 61712
A38: 14 | C38: TOTAL RATE GS INDUSTRIAL INCLUDING RIDERS | F38: =F24 -> 2047 | H38: =H27 -> 205705 | L38: =L29+L36 -> 1340153 | N38: =N29+N36 -> 100 | P38: =P29+P36 -> 1378038 | R38: =R29+R36 -> 2718191
C40: (1) BILLS THAT TERMINATE IN RESPECTIVE RATE STEPS.
C41: (2) REFLECTS NORMALIZED VOLUMES.
C42: ="(3) REFLECTS AVERAGE EXPECTED GAS COST OF "&TEXT(EGC,"$0.000")&"/MCF." -> (3) REFLECTS AVERAGE EXPECTED GAS COST OF $6.699/MCF.
T47: =COMPANY -> DUKE ENERGY KENTUCKY
T48: =CASE -> CASE NO. 2025-00125
T49: ANNUALIZED TEST YEAR REVENUES AT PROPOSED VS. MOST CURRENT RATES
T50: =TIME_PERIOD -> FOR THE TWELVE MONTHS ENDED DECEMBER 31, 2026
T51: =SERV_TYPE -> (GAS SERVICE)
T52: =DATA_TYPE -> DATA: ___ BASE PERIOD _X_FORECASTED PERIOD | AN52: SCHEDULE M-2.2
T53: =FILING_TYPE -> TYPE OF FILING: _X_ ORIGINAL ___UPDATED ___ REVISED | AN53: =R7 -> PAGE 4 OF 7
T54: WORK PAPER REFERENCE NO(S).: | AN54: WITNESS:
T55: =TIME -> 12 MONTHS FORECASTED | AN55: =WIT -> B. L. Sailers
T56: CURRENT ANNUALIZED
AD58: CURRENT | AF58: % OF REV TO | AH58: REVENUE | AJ58: % INCR IN | AN58: CURRENT | AP58: TOTAL
AB59: MOST | AD59: REVENUE LESS | AF59: TOTAL LESS | AH59: INCR LESS | AJ59: REV LESS | AN59: TOTAL | AP59: REVENUE
T60: LINE | V60: RATE | W60: CLASS / | X60: CUSTOMER | AB60: CURRENT | AD60: GAS COST | AF60: GAS COST | AH60: GAS COST REV | AJ60: GAS COST REV | AL60: GAS COST | AN60: REVENUE | AP60: % INCREASE
T61: NO. | V61: CODE | W61: DESCRIPTION | X61: BILLS(1) | Z61: SALES(2) | AB61: RATES | AD61: REVENUE | AF61: REVENUE | AH61: (F - K) | AJ61: (M / K) | AL61: REVENUE(3) | AN61: (K + H) | AP61: (M / K1)
V62: (A) | W62: (B) | X62: (C) | Z62: (D) | AB62: (J) | AD62: (K) | AF62: (L) | AH62: (M) | AJ62: (N) | AL62: (H) | AN62: (K1) | AP62: (O)
Z64: (MCF) | AB64: ($/MCF) | AD64: ($) | AF64: (%) | AH64: ($) | AJ64: (%) | AL64: ($) | AN64: ($) | AP64: (%)
T65: 1 | V65: GS | W65: INDUSTRIAL
T67: 2 | V67: CUSTOMER CHARGE:
T68: 3 | V68: NON-RESIDENTIAL
T69: 4 | V69: TOTAL MONTHLY BILLS x :
T70: 5 | V70: CUSTOMER CHARGE PER MONTH | X70: =F24 -> 2047 | AB70: =CUR_GS_CUST -> 58 | AD70: =ROUND(X70*AB70,0) -> 118726 | AF70: =ROUND((AD70/$AD$84)*100,1) -> 12.5 | AH70: =L24-AD70 -> 14329 | AJ70: =IF(AD70=0,"0.0 ",ROUND((AH70/AD70)*100,1)) -> 12.1 | AN70: =AD70+AL70 -> 118726 | AP70: =IF(AN70=0,"0.0 ",ROUND((AH70/AN70)*100,1)) -> 12.1
T72: 6 | V72: COMMODITY CHARGE:
T73: 7 | V73: ALL CONSUMPTION | Z73: =H27 -> 205705 | AB73: =CUR_GS -> 3.7443 | AD73: =ROUND((Z73*AB73),0) -> 770221 | AF73: =ROUND((AD73/$AD$84)*100,1) -> 81 | AH73: =L27-AD73 -> 375165 | AJ73: =IF(AD73=0,"0.0 ",ROUND((AH73/AD73)*100,1)) -> 48.7 | AL73: =P27 -> 1378038 | AN73: =AD73+AL73 -> 2148259 | AP73: =IF(AN73=0,"0.0 ",ROUND((AH73/AN73)*100,1)) -> 17.5
T75: 8 | V75: RATE GS INDUSTRIAL EXCLUDING RIDERS | X75: =X70 -> 2047 | Z75: =Z73 -> 205705 | AD75: =SUM(AD70:AD73) -> 888947 | AF75: =ROUND((AD75/$AD$84)*100,1) -> 93.5 | AH75: =SUM(AH70:AH73) -> 389494 | AJ75: =IF(AD75=0,"0.0 ",ROUND((AH75/AD75)*100,1)) -> 43.8 | AL75: =SUM(AL70:AL73) -> 1378038 | AN75: =SUM(AN70:AN73) -> 2266985 | AP75: =IF(AN75=0,"0.0 ",ROUND((AH75/AN75)*100,1)) -> 17.2
T77: 9 | V77: RIDERS:
T78: 10 | V78: =C38 -> TOTAL RATE GS INDUSTRIAL INCLUDING RIDERS | AB78: =CUR_GS_DSM -> 0 | AD78: =ROUND(Z73*AB78,0) -> 0 | AF78: =ROUND((AD78/$AD$84)*100,1) -> 0 | AH78: =L32-AD78 -> 0 | AJ78: =IF(AD78=0,"0.0 ",ROUND((AH78/AD78)*100,1)) -> 0.0 | AN78: =AD78+AL78 -> 0 | AP78: =IF(AN78=0,"0.0 ",ROUND((AH78/AN78)*100,1)) -> 0.0
T79: =A33 -> 11 | V79: WEATHER NORMALIZATION ADJUSTMENT (WNA) | AB79: 0 | AD79: =ROUND(Z75*AB79,0) -> 0 | AF79: =ROUND((AD79/$AD$84)*100,1) -> 0 | AH79: =L33-AD79 -> 0 | AJ79: =IF(AD79=0,"0.0 ",ROUND((AH79/AD79)*100,1)) -> 0.0 | AN79: =AD79+AL79 -> 0 | AP79: =IF(AN79=0,"0.0 ",ROUND((AH79/AN79)*100,1)) -> 0.0
T80: 12 | V80: PIPELINE MODERNIZATION MECHANISM (PMM) | AB80: =CUR_GS_PMM -> 0.3 | AD80: =ROUND(Z75*AB80,0) -> 61712 | AF80: =ROUND((AD80/$AD$84)*100,1) -> 6.5 | AH80: =L34-AD80 -> 0 | AJ80: =IF(AD80=0,"0.0 ",ROUND((AH80/AD80)*100,1)) -> 0 | AN80: =AD80+AL80 -> 61712 | AP80: =IF(AN80=0,"0.0 ",ROUND((AH80/AN80)*100,1)) -> 0
T82: =A36 -> 13 | V82: TOTAL RIDERS | AD82: =SUM(AD77:AD80) -> 61712 | AF82: =ROUND((AD82/$AD$84)*100,1) -> 6.5 | AH82: =SUM(AH77:AH80) -> 0 | AJ82: =IF(AD82=0,"0.0 ",ROUND((AH82/AD82)*100,1)) -> 0 | AN82: =SUM(AN77:AN80) -> 61712 | AP82: =IF(AN82=0,"0.0 ",ROUND((AH82/AN82)*100,1)) -> 0
T84: =A38 -> 14 | V84: TOTAL RATE GS INDUSTRIAL INCLUDING RIDERS | X84: =X70 -> 2047 | Z84: =Z73 -> 205705 | AD84: =AD75+AD82 -> 950659 | AF84: =AF75+AF82 -> 100 | AH84: =AH75+AH82 -> 389494 | AJ84: =IF(AD84=0,"0.0 ",ROUND((AH84/AD84)*100,1)) -> 41 | AL84: =P38 -> 1378038 | AN84: =AN75+AN82 -> 2328697 | AP84: =IF(AN84=0,"0.0 ",ROUND((AH84/AN84)*100,1)) -> 16.7
V86: (1) BILLS THAT TERMINATE IN RESPECTIVE RATE STEPS.
V87: (2) REFLECTS NORMALIZED VOLUMES.
V88: ="(3) REFLECTS AVERAGE EXPECTED GAS COST OF "&TEXT(EGC,"$0.000")&"/MCF." -> (3) REFLECTS AVERAGE EXPECTED GAS COST OF $6.699/MCF.

Sheet Rate GS OPA
A1: =COMPANY -> DUKE ENERGY KENTUCKY
A2: =CASE -> CASE NO. 2025-00125
A3: ANNUALIZED REVENUES AT PROPOSED VS. MOST CURRENT RATES
A4: =TIME_PERIOD -> FOR THE TWELVE MONTHS ENDED DECEMBER 31, 2026
A5: =SERV_TYPE -> (GAS SERVICE)
A6: =DATA_TYPE -> DATA: ___ BASE PERIOD _X_FORECASTED PERIOD | R6: SCHEDULE M-2.3
A7: =FILING_TYPE -> TYPE OF FILING: _X_ ORIGINAL ___UPDATED ___ REVISED | R7: PAGE 5 OF 7
A8: WORK PAPER REFERENCE NO(S).: | R8: WITNESS:
A9: =TIME -> 12 MONTHS FORECASTED | R9: =WIT -> B. L. Sailers
A10: PROPOSED ANNUALIZED
L12: PROPOSED | N12: % OF REV TO | R12: PROPOSED
L13: REVENUE LESS | N13: TOTAL LESS | R13: TOTAL
A14: LINE | C14: RATE | D14: CLASS / | F14: CUSTOMER | J14: PROPOSED | L14: GAS COST | N14: GAS COST | P14: GAS COST | R14: REVENUE
A15: NO. | C15: CODE | D15: DESCRIPTION | F15: BILLS(1) | H15: SALES(2) | J15: RATES | L15: REVENUE | N15: REVENUE | P15: REVENUE(3) | R15: (F + H)
C16: (A) | D16: (B) | F16: (C) | H16: (D) | J16: (E) | L16: (F) | N16: (G) | P16: (H) | R16: (I)
H18: (MCF) | J18: ($/MCF) | L18: ($) | N18: (%) | P18: ($) | R18: ($)
A19: 1 | C19: GS | D19: OTHER PUBLIC AUTHORITIES
A21: 2 | C21: CUSTOMER CHARGE:
A22: 3 | C22: NON-RESIDENTIAL
A23: 4 | C23: TOTAL MONTHLY BILLS x :
A24: 5 | C24: CUSTOMER CHARGE PER MONTH | F24: 3526 | J24: =PRO_GS_CUST -> 65 | L24: =ROUND(F24*J24,0) -> 229190 | N24: =ROUND((L24/$L$38)*100,1) -> 12.9 | R24: =L24+P24 -> 229190
A26: 6 | C26: COMMODITY CHARGE:
A27: 7 | C27: ALL CONSUMPTION | H27: 264202 | J27: =PRO_GS -> 5.5681 | L27: =ROUND((H27*J27),0) -> 1471103 | N27: =ROUND((L27/$L$38)*100,1) -> 82.7 | P27: =ROUND(EGC*$H27,0) -> 1769916 | R27: =L27+P27 -> 3241019
A29: 8 | C29: RATE GS OPA EXCLUDING RIDERS | F29: =F24 -> 3526 | H29: =H27 -> 264202 | L29: =SUM(L24:L27) -> 1700293 | N29: =ROUND((L29/$L$38)*100,1) -> 95.5 | P29: =SUM(P24:P27) -> 1769916 | R29: =SUM(R24:R27) -> 3470209
A31: 9 | C31: RIDERS:
A32: 10 | C32: DEMAND SIDE MANAGEMENT RATE (DSMR) | J32: =PRO_GS_DSM -> 0 | L32: =ROUND(H27*J32,0) -> 0 | N32: =ROUND((L32/$L$38)*100,1) -> 0 | R32: =L32+P32 -> 0
A33: 11 | C33: WEATHER NORMALIZATION ADJUSTMENT (WNA) | J33: 0 | L33: =ROUND(H29*J33,0) -> 0 | N33: =ROUND((L33/$L$38)*100,1) -> 0 | R33: =L33+P33 -> 0
A34: 12 | C34: PIPELINE MODERNIZATION MECHANISM (PMM) | J34: =PRO_GS_PMM -> 0.3 | L34: =ROUND(H29*J34,0) -> 79261 | N34: =ROUND((L34/$L$38)*100,1) -> 4.5 | R34: =L34+P34 -> 79261
A36: 13 | C36: TOTAL RIDERS | L36: =SUM(L31:L34) -> 79261 | N36: =ROUND((L36/$L$38)*100,1) -> 4.5 | R36: =SUM(R31:R34) -> 79261
A38: 14 | C38: TOTAL RATE GS OPA INCLUDING RIDERS | F38: =F24 -> 3526 | H38: =H27 -> 264202 | L38: =L29+L36 -> 1779554 | N38: =SUM(N29+N36) -> 100 | P38: =P29+P36 -> 1769916 | R38: =R29+R36 -> 3549470
C40: (1) BILLS THAT TERMINATE IN RESPECTIVE RATE STEPS.
C41: (2) REFLECTS NORMALIZED VOLUMES.
C42: ="(3) REFLECTS AVERAGE EXPECTED GAS COST OF "&TEXT(EGC,"$0.000")&"/MCF." -> (3) REFLECTS AVERAGE EXPECTED GAS COST OF $6.699/MCF.
T44: =COMPANY -> DUKE ENERGY KENTUCKY
T45: =CASE -> CASE NO. 2025-00125
T46: ANNUALIZED TEST YEAR REVENUES AT PROPOSED VS. MOST CURRENT RATES
T47: =TIME_PERIOD -> FOR THE TWELVE MONTHS ENDED DECEMBER 31, 2026
T48: =SERV_TYPE -> (GAS SERVICE)
T49: =DATA_TYPE -> DATA: ___ BASE PERIOD _X_FORECASTED PERIOD | AN49: SCHEDULE M-2.2
T50: =FILING_TYPE -> TYPE OF FILING: _X_ ORIGINAL ___UPDATED ___ REVISED | AN50: =R7 -> PAGE 5 OF 7
T51: WORK PAPER REFERENCE NO(S).: | AN51: WITNESS:
T52: =TIME -> 12 MONTHS FORECASTED | AN52: =WIT -> B. L. Sailers
T53: CURRENT ANNUALIZED
AD55: CURRENT | AF55: % OF REV TO | AH55: REVENUE | AJ55: % INCR IN | AN55: CURRENT | AP55: TOTAL
AB56: MOST | AD56: REVENUE LESS | AF56: TOTAL LESS | AH56: INCR LESS | AJ56: REV LESS | AN56: TOTAL | AP56: REVENUE
T57: LINE | V57: RATE | W57: CLASS / | X57: CUSTOMER | AB57: CURRENT | AD57: GAS COST | AF57: GAS COST | AH57: GAS COST REV | AJ57: GAS COST REV | AL57: GAS COST | AN57: REVENUE | AP57: % INCREASE
T58: NO. | V58: CODE | W58: DESCRIPTION | X58: BILLS(1) | Z58: SALES(2) | AB58: RATES | AD58: REVENUE | AF58: REVENUE | AH58: (F - K) | AJ58: (M / K) | AL58: REVENUE(3) | AN58: (K + H) | AP58: (M / K1)
V59: (A) | W59: (B) | X59: (C) | Z59: (D) | AB59: (J) | AD59: (K) | AF59: (L) | AH59: (M) | AJ59: (N) | AL59: (H) | AN59: (K1) | AP59: (O)
Z61: (MCF) | AB61: ($/MCF) | AD61: ($) | AF61: (%) | AH61: ($) | AJ61: (%) | AL61: ($) | AN61: ($) | AP61: (%)
T62: 1 | V62: GS | W62: OTHER PUBLIC AUTHORITIES
T64: 2 | V64: CUSTOMER CHARGE:
T65: 3 | V65: NON-RESIDENTIAL
T66: 4 | V66: TOTAL MONTHLY BILLS x :
T67: 5 | V67: CUSTOMER CHARGE PER MONTH | X67: =F24 -> 3526 | AB67: =CUR_GS_CUST -> 58 | AD67: =ROUND(X67*AB67,0) -> 204508 | AF67: =ROUND((AD67/$AD$81)*100,1) -> 16.1 | AH67: =L24-AD67 -> 24682 | AJ67: =IF(AD67=0,"0.0 ",ROUND((AH67/AD67)*100,1)) -> 12.1 | AN67: =AD67+AL67 -> 204508 | AP67: =IF(AN67=0,"0.0 ",ROUND((AH67/AN67)*100,1)) -> 12.1
T69: 6 | V69: COMMODITY CHARGE:
T70: 7 | V70: ALL CONSUMPTION | Z70: =H27 -> 264202 | AB70: =CUR_GS -> 3.7443 | AD70: =ROUND((Z70*AB70),0) -> 989252 | AF70: =ROUND((AD70/$AD$81)*100,1) -> 77.7 | AH70: =L27-AD70 -> 481851 | AJ70: =IF(AD70=0,"0.0 ",ROUND((AH70/AD70)*100,1)) -> 48.7 | AL70: =P27 -> 1769916 | AN70: =AD70+AL70 -> 2759168 | AP70: =IF(AN70=0,"0.0 ",ROUND((AH70/AN70)*100,1)) -> 17.5
T72: 8 | V72: RATE GS OPA EXCLUDING RIDERS | X72: =X67 -> 3526 | Z72: =Z70 -> 264202 | AD72: =SUM(AD67:AD70) -> 1193760 | AF72: =ROUND((AD72/$AD$81)*100,1) -> 93.8 | AH72: =SUM(AH67:AH70) -> 506533 | AJ72: =IF(AD72=0,"0.0 ",ROUND((AH72/AD72)*100,1)) -> 42.4 | AL72: =SUM(AL67:AL70) -> 1769916 | AN72: =SUM(AN67:AN70) -> 2963676 | AP72: =IF(AN72=0,"0.0 ",ROUND((AH72/AN72)*100,1)) -> 17.1
T74: 9 | V74: RIDERS:
T75: 10 | V75: DEMAND SIDE MANAGEMENT RATE (DSMR) | AB75: =CUR_GS_DSM -> 0 | AD75: =ROUND(Z70*AB75,0) -> 0 | AF75: =ROUND((AD75/$AD$81)*100,1) -> 0 | AH75: =L32-AD75 -> 0 | AJ75: =IF(AD75=0,"0.0 ",ROUND((AH75/AD75)*100,1)) -> 0.0 | AN75: =AD75+AL75 -> 0 | AP75: =IF(AN75=0,"0.0 ",ROUND((AH75/AN75)*100,1)) -> 0.0
T76: =A33 -> 11 | V76: WEATHER NORMALIZATION ADJUSTMENT (WNA) | AB76: 0 | AD76: =ROUND(Z72*AB76,0) -> 0 | AF76: =ROUND((AD76/$AD$81)*100,1) -> 0 | AH76: =L33-AD76 -> 0 | AJ76: =IF(AD76=0,"0.0 ",ROUND((AH76/AD76)*100,1)) -> 0.0 | AN76: =AD76+AL76 -> 0 | AP76: =IF(AN76=0,"0.0 ",ROUND((AH76/AN76)*100,1)) -> 0.0
T77: 12 | V77: PIPELINE MODERNIZATION MECHANISM (PMM) | AB77: =CUR_GS_PMM -> 0.3 | AD77: =ROUND(Z72*AB77,0) -> 79261 | AF77: =ROUND((AD77/$AD$81)*100,1) -> 6.2 | AH77: =L34-AD77 -> 0 | AJ77: =IF(AD77=0,"0.0 ",ROUND((AH77/AD77)*100,1)) -> 0 | AN77: =AD77+AL77 -> 79261 | AP77: =IF(AN77=0,"0.0 ",ROUND((AH77/AN77)*100,1)) -> 0
T79: =A36 -> 13 | V79: TOTAL RIDERS | AD79: =SUM(AD74:AD77) -> 79261 | AF79: =ROUND((AD79/$AD$81)*100,1) -> 6.2 | AH79: =SUM(AH74:AH77) -> 0 | AJ79: =IF(AD79=0,"0.0 ",ROUND((AH79/AD79)*100,1)) -> 0 | AN79: =SUM(AN74:AN77) -> 79261 | AP79: =IF(AN79=0,"0.0 ",ROUND((AH79/AN79)*100,1)) -> 0
T81: =A38 -> 14 | V81: TOTAL RATE GS OPA INCLUDING RIDERS | X81: =X67 -> 3526 | Z81: =Z70 -> 264202 | AD81: =AD72+AD79 -> 1273021 | AF81: =AF72+AF79 -> 100 | AH81: =AH72+AH79 -> 506533 | AJ81: =IF(AD81=0,"0.0 ",ROUND((AH81/AD81)*100,1)) -> 39.8 | AL81: =P38 -> 1769916 | AN81: =AN72+AN79 -> 3042937 | AP81: =IF(AN81=0,"0.0 ",ROUND((AH81/AN81)*100,1)) -> 16.6
V83: (1) BILLS THAT TERMINATE IN RESPECTIVE RATE STEPS.
V84: (2) REFLECTS NORMALIZED VOLUMES.
V85: ="(3) REFLECTS AVERAGE EXPECTED GAS COST OF "&TEXT(EGC,"$0.000")&"/MCF." -> (3) REFLECTS AVERAGE EXPECTED GAS COST OF $6.699/MCF.

Sheet Rate FT-LG
A1: =COMPANY -> DUKE ENERGY KENTUCKY
A2: =CASE -> CASE NO. 2025-00125
A3: ANNUALIZED REVENUES AT PROPOSED VS. MOST CURRENT RATES
A4: =TIME_PERIOD -> FOR THE TWELVE MONTHS ENDED DECEMBER 31, 2026
A5: =SERV_TYPE -> (GAS SERVICE)
A6: =DATA_TYPE -> DATA: ___ BASE PERIOD _X_FORECASTED PERIOD | R6: SCHEDULE M-2.3
A7: =FILING_TYPE -> TYPE OF FILING: _X_ ORIGINAL ___UPDATED ___ REVISED | R7: PAGE 6 OF 7
A8: WORK PAPER REFERENCE NO(S).: | R8: WITNESS:
A9: =TIME -> 12 MONTHS FORECASTED | R9: =WIT -> B. L. Sailers
A10: PROPOSED ANNUALIZED
L12: PROPOSED | N12: % OF REV TO | R12: PROPOSED
L13: REVENUE LESS | N13: TOTAL LESS | R13: TOTAL
A14: LINE | C14: RATE | D14: CLASS / | F14: CUSTOMER | J14: PROPOSED | L14: GAS COST | N14: GAS COST | P14: GAS COST | R14: REVENUE
A15: NO. | C15: CODE | D15: DESCRIPTION | F15: BILLS | H15: SALES(1) | J15: RATES | L15: REVENUE | N15: REVENUE | P15: REVENUE | R15: (F + H)
C16: (A) | D16: (B) | F16: (C) | H16: (D) | J16: (E) | L16: (F) | N16: (G) | P16: (H) | R16: (I)
H18: (MCF) | J18: ($/MCF) | L18: ($) | N18: (%) | P18: ($) | R18: ($)
A19: 1 | C19: FT - L
A20: 2 | C20: FIRM TRANSPORTATION - LARGE
A22: 3 | C22: ADMINISTRATIVE CHARGE | F22: 1737 | J22: =PRO_FTL_CUST -> 430 | L22: =ROUND((F22*J22),0) -> 746910 | N22: =ROUND((L22/L$35)*100,1) -> 10.2 | R22: =L22+P22 -> 746910
A24: 4 | C24: TRANSPORTATION CHARGE:
A25: 5 | C25: ALL CONSUMPTION | H25: 3002186 | J25: =PRO_FTL_COM -> 2.1688 | L25: =ROUND((H25*J25),0) -> 6511141 | N25: =ROUND((L25/L$35)*100,1) -> 89.3 | R25: =L25+P25 -> 6511141
A27: 6 | C27: RATE FT-LARGE EXCLUDING RIDERS | F27: =F22 -> 1737 | H27: =H25 -> 3002186 | L27: =SUM(L22:L25) -> 7258051 | N27: =SUM(N22:N25) -> 99.5 | R27: =SUM(R22:R25) -> 7258051
A29: 7 | C29: RIDERS:
A30: 8 | C30: PIPELINE MODERNIZATION MECHANISM (PMM) | J30: =PRO_FTL_PMM -> 0.0102 | L30: =ROUND(H25*J30,0) -> 30622 | N30: =ROUND((L30/L$35)*100,1) -> 0.4 | R30: =L30+P30 -> 30622
A31: 9 | C31: GAS COST ADJUSTMENT TRANSITION (GCAT) (2) | J31: =PRO_FTL_GCAT -> 0.037 | N31: =ROUND((L31/L$35)*100,1) -> 0 | P31: =ROUND(H25*R38*J31,0) -> 3332 | R31: =L31+P31 -> 3332
A33: 10 | C33: TOTAL RIDERS | L33: =SUM(L30:L31) -> 30622 | N33: =ROUND((L33/L$35)*100,1) -> 0.4 | P33: =P31 -> 3332 | R33: =SUM(R30:R31) -> 33954
A35: 11 | C35: TOTAL RATE FT - LARGE INCLUDING RIDERS | F35: =F22 -> 1737 | H35: =H25 -> 3002186 | L35: =L27+L33 -> 7288673 | N35: =SUM(N27+N33) -> 99.9 | P35: =P33+P27 -> 3332 | R35: =R27+R33 -> 7292005
C37: (1) REFLECTS NORMALIZED VOLUMES.
C38: (2) GCAT only applies to FT-L customers during the first 12 months after they switch from sales service. Usage for this rider estimated at | R38: 0.03
T39: =COMPANY -> DUKE ENERGY KENTUCKY
T40: =CASE -> CASE NO. 2025-00125
T41: ANNUALIZED TEST YEAR REVENUES AT PROPOSED VS. MOST CURRENT RATES
T42: =TIME_PERIOD -> FOR THE TWELVE MONTHS ENDED DECEMBER 31, 2026
T43: =SERV_TYPE -> (GAS SERVICE)
T44: =DATA_TYPE -> DATA: ___ BASE PERIOD _X_FORECASTED PERIOD | AN44: SCHEDULE M-2.2
T45: =FILING_TYPE -> TYPE OF FILING: _X_ ORIGINAL ___UPDATED ___ REVISED | AN45: =R7 -> PAGE 6 OF 7
T46: WORK PAPER REFERENCE NO(S).: | AN46: WITNESS:
T47: =TIME -> 12 MONTHS FORECASTED | AN47: =WIT -> B. L. Sailers
T48: CURRENT ANNUALIZED
AD50: CURRENT | AF50: % OF REV TO | AH50: REVENUE | AJ50: % INCR IN | AN50: CURRENT | AP50: TOTAL
AB51: MOST | AD51: REVENUE LESS | AF51: TOTAL LESS | AH51: INCR LESS | AJ51: REV LESS | AN51: TOTAL | AP51: REVENUE
T52: LINE | V52: RATE | W52: CLASS / | X52: CUSTOMER | AB52: CURRENT | AD52: GAS COST | AF52: GAS COST | AH52: GAS COST REV | AJ52: GAS COST REV | AL52: GAS COST | AN52: REVENUE | AP52: % INCREASE
T53: NO. | V53: CODE | W53: DESCRIPTION | X53: BILLS | Z53: SALES(1) | AB53: RATES | AD53: REVENUE | AF53: REVENUE | AH53: (F - K) | AJ53: (M / K) | AL53: REVENUE | AN53: (K + H) | AP53: (M / K1)
V54: (A) | W54: (B) | X54: (C) | Z54: (D) | AB54: (J) | AD54: (K) | AF54: (L) | AH54: (M) | AJ54: (N) | AL54: (H) | AN54: (K1) | AP54: (O)
Z56: (MCF) | AB56: ($/MCF) | AD56: ($) | AF56: (%) | AH56: ($) | AJ56: (%) | AL56: ($) | AN56: ($) | AP56: (%)
T57: 1 | V57: FT - L
T58: 2 | V58: FIRM TRANSPORTATION - LARGE
T60: 3 | V60: ADMINISTRATIVE CHARGE | X60: =F22 -> 1737 | AB60: =CUR_FTL_CUST -> 430 | AD60: =ROUND(X60*AB60,0) -> 746910 | AF60: =IF(AD$73=0,"0.0 ",ROUND((AD60/AD$73)*100,1)) -> 10.1 | AH60: =L22-AD60 -> 0 | AJ60: =IF(AD60=0,"0.0 ",ROUND((AH60/AD60)*100,1)) -> 0 | AN60: =AD60+AL60 -> 746910 | AP60: =IF(AN60=0,"0.0 ",ROUND((AH60/AN60)*100,1)) -> 0
T62: 4 | V62: TRANSPORTATION CHARGE:
T63: 5 | V63: ALL CONSUMPTION | Z63: =H25 -> 3002186 | AB63: =CUR_FTL_COM -> 2.1976 | AD63: =ROUND(Z63*AB63,0) -> 6597604 | AF63: =IF(AD$73=0,"0.0 ",ROUND((AD63/AD$73)*100,1)) -> 89.5 | AH63: =L25-AD63 -> -86463 | AJ63: =IF(AD63=0,"0.0 ",ROUND((AH63/AD63)*100,1)) -> -1.3 | AN63: =AD63+AL63 -> 6597604 | AP63: =IF(AN63=0,"0.0 ",ROUND((AH63/AN63)*100,1)) -> -1.3
T65: 6 | V65: RATE FT-LARGE EXCLUDING RIDERS | X65: =X60 -> 1737 | Z65: =Z63 -> 3002186 | AD65: =SUM(AD60:AD63) -> 7344514 | AF65: =SUM(AF60:AF63) -> 99.6 | AH65: =SUM(AH60:AH63) -> -86463 | AJ65: =IF(AD65=0,"0.0 ",ROUND((AH65/AD65)*100,1)) -> -1.2 | AN65: =SUM(AN60:AN63) -> 7344514 | AP65: =IF(AN65=0,"0.0 ",ROUND((AH65/AN65)*100,1)) -> -1.2
T67: 7 | V67: RIDERS:
T68: 8 | V68: PIPELINE MODERNIZATION MECHANISM (PMM) | AB68: =CUR_FTL_PMM -> 0.0102 | AD68: =ROUND(Z63*AB68,0) -> 30622 | AF68: =IF(AD$73=0,"0.0 ",ROUND((AD68/AD$73)*100,1)) -> 0.4 | AH68: =L30-AD68 -> 0 | AJ68: =IF(AD68=0,"0.0 ",ROUND((AH68/AD68)*100,1)) -> 0 | AN68: =AD68+AL68 -> 30622 | AP68: =IF(AN68=0,"0.0 ",ROUND((AH68/AN68)*100,1)) -> 0
T69: 9 | V69: GAS COST ADJUSTMENT TRANSITION (GCAT)(2) | AB69: =CUR_FTL_GCAT -> 0.037 | AF69: =IF(AD$73=0,"0.0 ",ROUND((AD69/AD$73)*100,1)) -> 0 | AH69: =L31-AD69 -> 0 | AJ69: =IF(AD69=0,"0.0 ",ROUND((AH69/AD69)*100,1)) -> 0.0 | AL69: =ROUND(Z63*R38*AB69,0) -> 3332 | AN69: =AD69+AL69 -> 3332 | AP69: =IF(AN69=0,"0.0 ",ROUND((AH69/AN69)*100,1)) -> 0
T71: 10 | V71: TOTAL RIDERS | AD71: =SUM(AD68:AD69) -> 30622 | AF71: =SUM(AF68:AF69) -> 0.4 | AH71: =SUM(AH68:AH69) -> 0 | AJ71: =IF(AD71=0,"0.0 ",ROUND((AH71/AD71)*100,1)) -> 0 | AL71: =SUM(AL69:AL69) -> 3332 | AN71: =SUM(AN68:AN69) -> 33954 | AP71: =IF(AN71=0,"0.0 ",ROUND((AH71/AN71)*100,1)) -> 0
T73: 11 | V73: TOTAL RATE FT - LARGE INCLUDING RIDERS | X73: =X60 -> 1737 | Z73: =Z63 -> 3002186 | AD73: =SUM(AD65+AD71) -> 7375136 | AF73: =SUM(AF65+AF71) -> 100 | AH73: =SUM(AH65+AH71) -> -86463 | AJ73: =IF(AD73=0,"0.0 ",ROUND((AH73/AD73)*100,1)) -> -1.2 | AL73: =SUM(AL65+AL71) -> 3332 | AN73: =SUM(AN65+AN71) -> 7378468 | AP73: =IF(AN73=0,"0.0 ",ROUND((AH73/AN73)*100,1)) -> -1.2
V76: (1) REFLECTS NORMALIZED VOLUMES.
V77: ="(2) GCAT only applies to FT-L customers during the first 12 months after they switch from sales service. Usage for this rider estimated at "&TEXT(R38,"0%") -> (2) GCAT only applies to FT-L customers during the first 12 months after they switch from sales service. Usage for this rider estimated at 3%

Sheet Rate IT
A1: =COMPANY -> DUKE ENERGY KENTUCKY
A2: =CASE -> CASE NO. 2025-00125
A3: ANNUALIZED REVENUES AT PROPOSED VS. MOST CURRENT RATES
A4: =TIME_PERIOD -> FOR THE TWELVE MONTHS ENDED DECEMBER 31, 2026
A5: =SERV_TYPE -> (GAS SERVICE)
A6: =DATA_TYPE -> DATA: ___ BASE PERIOD _X_FORECASTED PERIOD | R6: SCHEDULE M-2.3
A7: =FILING_TYPE -> TYPE OF FILING: _X_ ORIGINAL ___UPDATED ___ REVISED | R7: PAGE 7 OF 7
A8: WORK PAPER REFERENCE NO(S).: | R8: WITNESS:
A9: =TIME -> 12 MONTHS FORECASTED | R9: =WIT -> B. L. Sailers
A10: PROPOSED ANNUALIZED
L12: PROPOSED | N12: % OF REV TO | R12: PROPOSED
L13: REVENUE LESS | N13: TOTAL LESS | R13: TOTAL
A14: LINE | C14: RATE | D14: CLASS / | F14: CUSTOMER | J14: PROPOSED | L14: GAS COST | N14: GAS COST | P14: GAS COST | R14: REVENUE
A15: NO. | C15: CODE | D15: DESCRIPTION | F15: BILLS | H15: SALES | J15: RATES | L15: REVENUE | N15: REVENUE | P15: REVENUE | R15: (F + H)
C16: (A) | D16: (B) | F16: (C) | H16: (D) | J16: (E) | L16: (F) | N16: (G) | P16: (H) | R16: (I)
H18: (MCF) | J18: ($/MCF) | L18: ($) | N18: (%) | P18: ($) | R18: ($)
A19: 1 | C19: IT
A20: 2 | C20: INTERRUPTIBLE TRANSPORTATION
A22: 3 | C22: ADMINISTRATIVE CHARGE | F22: 226 | J22: =PRO_IT_CUST -> 430 | L22: =ROUND((F22*J22),0) -> 97180 | N22: =ROUND((L22/L$34)*100,1) -> 4.8 | R22: =L22+P22 -> 97180
A24: 4 | C24: COMMODITY CHARGE:
A25: 5 | C25: ALL CONSUMPTION | H25: 1654919 | J25: =PRO_IT_COM -> 1.1498 | L25: =ROUND((H25*(J25)),0) -> 1902826 | N25: =ROUND((L25/L$34)*100,1) -> 94.2 | R25: =L25+P25 -> 1902826
A27: 6 | C27: RATE IT EXCLUDING RIDERS | F27: =F22 -> 226 | H27: =H25 -> 1654919 | L27: =SUM(L22:L25) -> 2000006 | N27: =SUM(N22:N25) -> 99 | R27: =SUM(R22:R25) -> 2000006
A29: 7 | C29: RIDERS:
A30: 8 | C30: PIPELINE MODERNIZATION MECHANISM (PMM) | J30: =PRO_IT_PMM -> 0.0115 | L30: =ROUND(H25*J30,0) -> 19032 | N30: =ROUND((L30/L$34)*100,1) -> 0.9 | R30: =L30+P30 -> 19032
A32: 9 | C32: TOTAL RIDERS | L32: =SUM(L29:L30) -> 19032 | N32: =ROUND((L32/L$34)*100,1) -> 0.9 | R32: =SUM(R29:R30) -> 19032
A34: 10 | C34: TOTAL RATE IT TRANSPORTATION | F34: =F27 -> 226 | H34: =H27 -> 1654919 | L34: =L27+L32 -> 2019038 | N34: =ROUND((L34/L$34)*100,1) -> 100 | R34: =R27+R32 -> 2019038
T41: =COMPANY -> DUKE ENERGY KENTUCKY
T42: =CASE -> CASE NO. 2025-00125
T43: ANNUALIZED TEST YEAR REVENUES AT PROPOSED VS. MOST CURRENT RATES
T44: =TIME_PERIOD -> FOR THE TWELVE MONTHS ENDED DECEMBER 31, 2026
T45: =SERV_TYPE -> (GAS SERVICE)
T46: =DATA_TYPE -> DATA: ___ BASE PERIOD _X_FORECASTED PERIOD | AN46: SCHEDULE M-2.2
T47: =FILING_TYPE -> TYPE OF FILING: _X_ ORIGINAL ___UPDATED ___ REVISED | AN47: =R7 -> PAGE 7 OF 7
T48: WORK PAPER REFERENCE NO(S).: | AN48: WITNESS:
T49: =TIME -> 12 MONTHS FORECASTED | AN49: =WIT -> B. L. Sailers
T50: CURRENT ANNUALIZED
AD52: CURRENT | AF52: % OF REV TO | AH52: REVENUE | AJ52: % INCR IN | AN52: CURRENT | AP52: TOTAL
AB53: MOST | AD53: REVENUE LESS | AF53: TOTAL LESS | AH53: INCR LESS | AJ53: REV LESS | AN53: TOTAL | AP53: REVENUE
T54: LINE | V54: RATE | W54: CLASS / | X54: CUSTOMER | AB54: CURRENT | AD54: GAS COST | AF54: GAS COST | AH54: GAS COST REV | AJ54: GAS COST REV | AL54: GAS COST | AN54: REVENUE | AP54: % INCREASE
T55: NO. | V55: CODE | W55: DESCRIPTION | X55: BILLS | Z55: SALES | AB55: RATES | AD55: REVENUE(3) | AF55: REVENUE | AH55: (F - K) | AJ55: (M / K) | AL55: REVENUE | AN55: (K + H) | AP55: (M / K1)
V56: (A) | W56: (B) | X56: (C) | Z56: (D) | AB56: (J) | AD56: (K) | AF56: (L) | AH56: (M) | AJ56: (N) | AL56: (H) | AN56: (K1) | AP56: (O)
Z58: (MCF) | AB58: ($/MCF) | AD58: ($) | AF58: (%) | AH58: ($) | AJ58: (%) | AL58: ($) | AN58: ($) | AP58: (%)
T59: 1 | V59: RATE IT
T60: 2 | V60: INTERRUPTIBLE TRANSPORTATION
T62: 3 | V62: ADMINISTRATIVE CHARGE | X62: =F22 -> 226 | AB62: =CUR_IT_CUST -> 430 | AD62: =ROUND(X62*AB62,0) -> 97180 | AF62: =ROUND((AD62/AD$74)*100,1) -> 4.9 | AH62: =L22-AD62 -> 0 | AJ62: =IF(AD62=0,"0.0 ",ROUND((AH62/AD62)*100,1)) -> 0 | AN62: =AD62+AL62 -> 97180 | AP62: =IF(AN62=0,"0.0 ",ROUND((AH62/AN62)*100,1)) -> 0
T64: 4 | V64: COMMODITY CHARGE:
T65: 5 | V65: ALL CONSUMPTION | Z65: =H25 -> 1654919 | AB65: =CUR_IT_COM -> 1.13 | AD65: =ROUND(Z65*AB65,0) -> 1870058 | AF65: =ROUND((AD65/AD$74)*100,1) -> 94.1 | AH65: =L25-AD65 -> 32768 | AJ65: =IF(AD65=0,"0.0 ",ROUND((AH65/AD65)*100,1)) -> 1.8 | AN65: =AD65+AL65 -> 1870058 | AP65: =IF(AN65=0,"0.0 ",ROUND((AH65/AN65)*100,1)) -> 1.8
T67: 6 | V67: RATE IT EXCLUDING RIDERS | X67: =X62 -> 226 | Z67: =Z65 -> 1654919 | AD67: =SUM(AD62:AD65) -> 1967238 | AF67: =SUM(AF62:AF65) -> 99 | AH67: =L27-AD67 -> 32768 | AJ67: =IF(AD67=0,"0.0 ",ROUND((AH67/AD67)*100,1)) -> 1.7 | AN67: =SUM(AN62:AN65) -> 1967238 | AP67: =IF(AN67=0,"0.0 ",ROUND((AH67/AN67)*100,1)) -> 1.7
T69: 7 | V69: RIDERS:
T70: 8 | V70: PIPELINE MODERNIZATION MECHANISM (PMM) | AB70: =CUR_IT_PMM -> 0.0115 | AD70: =ROUND(Z65*AB70,0) -> 19032 | AF70: =ROUND((AD70/AD$74)*100,1) -> 1 | AH70: =L30-AD70 -> 0 | AJ70: =IF(AD70=0,"0.0 ",ROUND((AH70/AD70)*100,1)) -> 0 | AN70: =AD70+AL70 -> 19032 | AP70: =IF(AN70=0,"0.0 ",ROUND((AH70/AN70)*100,1)) -> 0
T72: 9 | V72: TOTAL RIDERS | AD72: =SUM(AD69:AD70) -> 19032 | AF72: =ROUND((AD72/AD$74)*100,1) -> 1 | AH72: =L32-AD72 -> 0 | AJ72: =IF(AD72=0,"0.0 ",ROUND((AH72/AD72)*100,1)) -> 0 | AN72: =SUM(AN69:AN70) -> 19032 | AP72: =IF(AN72=0,"0.0 ",ROUND((AH72/AN72)*100,1)) -> 0
T74: 10 | V74: TOTAL RATE IT TRANSPORTATION | X74: =X67 -> 226 | Z74: =Z67 -> 1654919 | AD74: =AD67+AD72 -> 1986270 | AF74: =ROUND((AD74/AD$74)*100,1) -> 100 | AH74: =AH67+AH72 -> 32768 | AJ74: =IF(AD74=0,"0.0 ",ROUND((AH74/AD74)*100,1)) -> 1.6 | AN74: =AN67+AN72 -> 1986270 | AP74: =IF(AN74=0,"0.0 ",ROUND((AH74/AN74)*100,1)) -> 1.6

Sheet SCH N
A1: =COMPANY -> DUKE ENERGY KENTUCKY
A2: =CASE -> CASE NO. 2025-00125
A3: EFFECTS OF PROPOSED RESIDENTIAL AND GENERAL SERVICE RATES
A4: TYPICAL BILL COMPARISON
A5: =SERV_TYPE -> (GAS SERVICE)
A7: =DATA_TYPE -> DATA: ___ BASE PERIOD _X_FORECASTED PERIOD | M7: SCHEDULE N
A8: =FILING_TYPE -> TYPE OF FILING: _X_ ORIGINAL ___UPDATED ___ REVISED | M8: PAGE 1 OF 2
A9: WORK PAPER REFERENCE NO(S).: | M9: WITNESS:
A10: =TIME -> 12 MONTHS FORECASTED | M10: =WIT -> B. L. Sailers
F13: BILL DATA INCLUDING RIDERS LESS COST of GAS | L13: TOTAL | M13: TOTAL
D14: LEVEL | E14: LEVEL | H14: DOLLAR | I14: PERCENT | L14: CURRENT | M14: PROPOSED | N14: PERCENT
D15: of | E15: of | F15: CURRENT | G15: PROPOSED | H15: INCREASE | I15: INCREASE | K15: GAS | L15: BILL | M15: BILL | N15: INCREASE
A16: LINE | C16: RATE | D16: DEMAND | E16: USE | F16: BILL | G16: BILL | H16: (D - C) | I16: (E / C) | K16: COST (1) | L16: (C + G) | M16: (D + G) | N16: (I-H) /H
A17: NO. | C17: CODE | D17: (A) | E17: (B) | F17: (C) | G17: (D) | H17: (E) | I17: (F) | K17: (G) | L17: (H) | M17: (I) | N17: (L)
E18: (MCF) | F18: ($) | G18: ($) | H18: ($) | I18: (%) | K18: ($) | L18: ($) | M18: ($) | N18: (%)
A19: 1 | C19: (RS)
A20: 2 | C20: RESIDENTIAL | D20: Not | E20: 1 | F20: =ROUND(E20*(CUR_RS+CUR_RS_DSM+CUR_RS_PMM)+CUR_RS_CUST+CUR_RS_HEA,2) -> 24.26 | G20: =ROUND(E20*(PRO_RS_COM+PRO_RS_DSM+PRO_RS_PMM)+PRO_RS_CUST+PRO_RS_HEA,2) -> 28.55 | H20: =G20-F20 -> 4.29 | I20: =ROUND(H20/F20,3)*100 -> 17.7 | K20: =ROUND(E20*EGC,2) -> 6.7 | L20: =F20+K20 -> 30.96 | M20: =G20+K20 -> 35.25 | N20: =ROUND((M20-L20)/L20,3)*100 -> 13.9
A21: 3 | D21: Applicable | E21: 3 | F21: 37.18 | G21: 45.06 | H21: =G21-F21 -> 7.88 | I21: 21.2 | K21: =ROUND(E21*EGC,2) -> 20.1 | L21: =F21+K21 -> 57.28 | M21: =G21+K21 -> 65.16 | N21: =ROUND((M21-L21)/L21,3)*100 -> 13.8
A22: 4 | E22: 6 | F22: 56.56 | G22: 69.83 | H22: 13.27 | I22: 23.5 | K22: 40.19 | L22: =F22+K22 -> 96.75 | M22: 110.02 | N22: 13.7
A23: 5 | E23: 8 | F23: 69.48 | G23: 86.34 | H23: 16.86 | I23: 24.3 | K23: 53.59 | L23: =F23+K23 -> 123.07 | M23: 139.93 | N23: 13.7
A24: 6 | E24: 10 | F24: 82.4 | G24: 102.85 | H24: 20.45 | I24: 24.8 | K24: 66.99 | L24: =F24+K24 -> 149.39 | M24: 169.84 | N24: 13.7
A25: 7 | E25: 12 | F25: 95.32 | G25: 119.36 | H25: 24.04 | I25: 25.2 | K25: 80.39 | L25: =F25+K25 -> 175.71 | M25: 199.75 | N25: 13.7
A26: 8 | E26: 16 | F26: 121.16 | G26: 152.38 | H26: 31.22 | I26: 25.8 | K26: 107.19 | L26: 228.35 | M26: 259.57 | N26: 13.7
A27: 9 | E27: 20 | F27: 147 | G27: 185.4 | H27: 38.4 | I27: 26.1 | K27: 133.98 | L27: 280.98 | M27: 319.38 | N27: 13.7
A28: 10 | E28: 30 | F28: 211.6 | G28: 267.95 | H28: 56.35 | I28: 26.6 | K28: 200.97 | L28: 412.57 | M28: 468.92 | N28: 13.7
A29: 11 | E29: 40 | F29: 276.2 | G29: 350.5 | H29: 74.3 | I29: 26.9 | K29: 267.96 | L29: 544.16 | M29: 618.46 | N29: 13.7
A30: 12 | E30: 50 | F30: 340.79 | G30: 433.04 | H30: 92.25 | I30: 27.1 | K30: 334.96 | L30: 675.75 | M30: 768 | N30: 13.7
A31: 13 | E31: 60 | F31: 405.39 | G31: 515.59 | H31: 110.2 | I31: 27.2 | K31: 401.95 | L31: 807.34 | M31: 917.54 | N31: 13.6
A32: 14 | E32: 80 | F32: 534.59 | G32: 680.69 | H32: 146.1 | I32: 27.3 | K32: 535.93 | L32: 1070.52 | M32: 1216.62 | N32: 13.6
A33: 15 | E33: 100 | F33: 663.79 | G33: 845.79 | H33: 182 | I33: 27.4 | K33: 669.91 | L33: 1333.7 | M33: 1515.7 | N33: 13.6
A35: 16 | C35: (GS)
A36: 17 | C36: NON-RESIDENTIAL | E36: 5 | F36: =ROUND(E36*(CUR_GS+CUR_GS_PMM)+CUR_GS_CUST,2) -> 78.22 | G36: =ROUND(E36*(+PRO_GS+PRO_GS_PMM)+PRO_GS_CUST,2) -> 94.34 | H36: =G36-F36 -> 16.12 | I36: =ROUND(H36/F36,3)*100 -> 20.6 | K36: =ROUND(E36*EGC,2) -> 33.5 | L36: =F36+K36 -> 111.72 | M36: =G36+K36 -> 127.84 | N36: =ROUND((M36-L36)/L36,3)*100 -> 14.4
A37: 18 | E37: 10 | F37: 98.44 | G37: 123.68 | H37: 25.24 | I37: 25.6 | K37: 66.99 | L37: 165.43 | M37: 190.67 | N37: 15.3
A38: 19 | E38: 20 | F38: 138.89 | G38: 182.36 | H38: 43.47 | I38: 31.3 | K38: 133.98 | L38: 272.87 | M38: 316.34 | N38: 15.9
A39: 20 | E39: 40 | F39: 219.77 | G39: 299.72 | H39: 79.95 | I39: 36.4 | K39: 267.96 | L39: 487.73 | M39: 567.68 | N39: 16.4
A40: 21 | E40: 50 | F40: 260.22 | G40: 358.41 | H40: 98.19 | I40: 37.7 | K40: 334.96 | L40: 595.18 | M40: 693.37 | N40: 16.5
A41: 22 | E41: 100 | F41: 462.43 | G41: 651.81 | H41: 189.38 | I41: 41 | K41: 669.91 | L41: 1132.34 | M41: 1321.72 | N41: 16.7
A42: 23 | E42: 300 | F42: 1271.29 | G42: 1825.43 | H42: 554.14 | I42: 43.6 | K42: 2009.73 | L42: 3281.02 | M42: 3835.16 | N42: 16.9
A43: 24 | E43: 500 | F43: 2080.15 | G43: 2999.05 | H43: 918.9 | I43: 44.2 | K43: 3349.55 | L43: 5429.7 | M43: 6348.6 | N43: 16.9
A44: 25 | E44: 700 | F44: 2889.01 | G44: 4172.67 | H44: 1283.66 | I44: 44.4 | K44: 4689.37 | L44: 7578.38 | M44: 8862.04 | N44: 16.9
A45: 26 | E45: 850 | F45: 3495.66 | G45: 5052.89 | H45: 1557.23 | I45: 44.5 | K45: 5694.24 | L45: 9189.9 | M45: 10747.13 | N45: 16.9
A46: 27 | E46: 1000 | F46: 4102.3 | G46: 5933.1 | H46: 1830.8 | I46: 44.6 | K46: 6699.1 | L46: 10801.4 | M46: 12632.2 | N46: 16.9
A47: 28 | E47: 2000 | F47: 8146.6 | G47: 11801.2 | H47: 3654.6 | I47: 44.9 | K47: 13398.2 | L47: 21544.8 | M47: 25199.4 | N47: 17
A48: 29 | E48: 3000 | F48: 12190.9 | G48: 17669.3 | H48: 5478.4 | I48: 44.9 | K48: 20097.3 | L48: 32288.2 | M48: 37766.6 | N48: 17
C51: ="(1) REFLECTS AVERAGE EXPECTED GAS COST OF "&TEXT(EGC,"$0.000")&"/MCF." -> (1) REFLECTS AVERAGE EXPECTED GAS COST OF $6.699/MCF.
A54: =COMPANY -> DUKE ENERGY KENTUCKY
A55: =CASE -> CASE NO. 2025-00125
A56: EFFECTS OF PROPOSED FIRM TRANSPORTATION-LARGE RATES
A57: AND INTERRUPTIBLE TRANSPORTATION RATES ON TYPICAL CUSTOMER BILLS
A58: =SERV_TYPE -> (GAS SERVICE)
A60: =DATA_TYPE -> DATA: ___ BASE PERIOD _X_FORECASTED PERIOD | N60: SCHEDULE N
A61: =FILING_TYPE -> TYPE OF FILING: _X_ ORIGINAL ___UPDATED ___ REVISED | N61: PAGE 2 OF 2
A62: WORK PAPER REFERENCE NO(S).: | N62: WITNESS:
A63: =TIME -> 12 MONTHS FORECASTED | N63: =WIT -> B. L. Sailers
F66: BILL DATA INCLUDING RIDERS LESS COST of GAS | L66: TOTAL | M66: TOTAL
D67: LEVEL | E67: LEVEL | H67: DOLLAR | I67: PERCENT | L67: CURRENT | M67: PROPOSED | N67: PERCENT
D68: of | E68: of | F68: CURRENT | G68: PROPOSED | H68: INCREASE | I68: INCREASE | K68: GAS | L68: BILL | M68: BILL | N68: INCREASE
A69: LINE | C69: RATE | D69: DEMAND | E69: USE | F69: BILL | G69: BILL | H69: (D - C) | I69: (E / C) | K69: COST (1) | L69: (C + G) | M69: (D + G) | N69: (I-H) /H
A70: NO. | C70: CODE | D70: (A) | E70: (B) | F70: (C) | G70: (D) | H70: (E) | I70: (F) | K70: (G) | L70: (H) | M70: (I) | N70: (L)
E71: (MCF) | F71: ($) | G71: ($) | H71: ($) | I71: (%) | K71: ($) | L71: ($) | M71: ($) | N71: (%)
E72: (MCF) | F72: ($) | G72: ($) | H72: ($) | I72: (%) | K72: ($) | L72: ($) | M72: ($) | N72: (%)
A74: 1 | C74: (FT-L) | D74: Not
A75: 2 | C75: FIRM | D75: Applicable | E75: 1000 | F75: =ROUND(E75*(CUR_FTL_COM+CUR_FTL_PMM),2)+CUR_FTL_CUST -> 2637.8 | G75: =ROUND(E75*(PRO_FTL_COM+PRO_FTL_PMM),2)+PRO_FTL_CUST -> 2609 | H75: =+G75-F75 -> -28.8 | I75: =ROUND(H75/F75,3)*100 -> -1.1 | K75: =ROUND(E75*PRO_FTL_GCAT,2) -> 37 | L75: =F75+K75 -> 2674.8 | M75: =G75+K75 -> 2646 | N75: =ROUND((M75-L75)/L75,3)*100 -> -1.1
A76: 3 | C76: TRANSPORTATION | E76: 1500 | F76: 3741.7 | G76: 3698.5 | H76: =+G76-F76 -> -43.2 | I76: -1.2 | K76: 55.5 | L76: =F76+K76 -> 3797.2 | M76: =G76+K76 -> 3754 | N76: =ROUND((M76-L76)/L76,3)*100 -> -1.1
A77: 4 | E77: 2000 | F77: 4845.6 | G77: 4788 | H77: -57.6 | I77: -1.2 | K77: 74 | L77: 4919.6 | M77: 4862 | N77: -1.2
A78: 5 | E78: 3000 | F78: 7053.4 | G78: 6967 | H78: -86.4 | I78: -1.2 | K78: 111 | L78: 7164.4 | M78: 7078 | N78: -1.2
A79: 6 | E79: 5000 | F79: 11469 | G79: 11325 | H79: -144 | I79: -1.3 | K79: 185 | L79: 11654 | M79: 11510 | N79: -1.2
A80: 7 | E80: 10000 | F80: 22508 | G80: 22220 | H80: -288 | I80: -1.3 | K80: 370 | L80: 22878 | M80: 22590 | N80: -1.3
A81: 8 | E81: 20000 | F81: 44586 | G81: 44010 | H81: -576 | I81: -1.3 | K81: 740 | L81: 45326 | M81: 44750 | N81: -1.3
A82: 9 | E82: 30000 | F82: 66664 | G82: 65800 | H82: -864 | I82: -1.3 | K82: 1110 | L82: 67774 | M82: 66910 | N82: -1.3
A83: 10 | E83: 40000 | F83: 88742 | G83: 87590 | H83: -1152 | I83: -1.3 | K83: 1480 | L83: 90222 | M83: 89070 | N83: -1.3
A84: 11 | E84: 50000 | F84: 110820 | G84: 109380 | H84: -1440 | I84: -1.3 | K84: 1850 | L84: 112670 | M84: 111230 | N84: -1.3
A85: 12 | E85: 75000 | F85: 166015 | G85: 163855 | H85: -2160 | I85: -1.3 | K85: 2775 | L85: 168790 | M85: 166630 | N85: -1.3
A86: 13 | E86: 100000 | F86: 221210 | G86: 218330 | H86: -2880 | I86: -1.3 | K86: 3700 | L86: 224910 | M86: 222030 | N86: -1.3
A87: 14 | E87: 150000 | F87: 331600 | G87: 327280 | H87: -4320 | I87: -1.3 | K87: 5550 | L87: 337150 | M87: 332830 | N87: -1.3
A88: 15 | E88: 200000 | F88: 441990 | G88: 436230 | H88: -5760 | I88: -1.3 | K88: 7400 | L88: 449390 | M88: 443630 | N88: -1.3
A90: 16 | C90: (IT) | D90: Not
A91: 17 | C91: INTERRUPTIBLE | D91: Applicable | E91: 2000 | F91: =ROUND(E91*(CUR_IT_COM+CUR_IT_PMM),2)+CUR_IT_CUST -> 2713 | G91: =ROUND(E91*(PRO_IT_COM+PRO_IT_PMM),2)+PRO_IT_CUST -> 2752.6 | H91: =+G91-F91 -> 39.6 | I91: =ROUND(H91/F91,3)*100 -> 1.5 | K91: 0 | L91: =F91+K91 -> 2713 | M91: =G91+K91 -> 2752.6 | N91: =ROUND((M91-L91)/L91,3)*100 -> 1.5
A92: 18 | C92: TRANSPORTATION | E92: 5000 | F92: 6137.5 | G92: 6236.5 | H92: =+G92-F92 -> 99 | I92: =ROUND(H92/F92,3)*100 -> 1.6 | K92: 0 | L92: =F92+K92 -> 6137.5 | M92: =G92+K92 -> 6236.5 | N92: =ROUND((M92-L92)/L92,3)*100 -> 1.6
A93: 19 | E93: 10000 | F93: 11845 | G93: 12043 | H93: 198 | I93: 1.7 | K93: 0 | L93: 11845 | M93: 12043 | N93: 1.7
A94: 20 | E94: 15000 | F94: 17552.5 | G94: 17849.5 | H94: 297 | I94: 1.7 | K94: 0 | L94: 17552.5 | M94: 17849.5 | N94: 1.7
A95: 21 | E95: 20000 | F95: 23260 | G95: 23656 | H95: 396 | I95: 1.7 | K95: 0 | L95: 23260 | M95: 23656 | N95: 1.7
A96: 22 | E96: 25000 | F96: 28967.5 | G96: 29462.5 | H96: 495 | I96: 1.7 | K96: 0 | L96: 28967.5 | M96: 29462.5 | N96: 1.7
A97: 23 | E97: 30000 | F97: 34675 | G97: 35269 | H97: 594 | I97: 1.7 | K97: 0 | L97: 34675 | M97: 35269 | N97: 1.7
A98: 24 | E98: 40000 | F98: 46090 | G98: 46882 | H98: 792 | I98: 1.7 | K98: 0 | L98: 46090 | M98: 46882 | N98: 1.7
A99: 25 | E99: 50000 | F99: 57505 | G99: 58495 | H99: 990 | I99: 1.7 | K99: 0 | L99: 57505 | M99: 58495 | N99: 1.7
A100: 26 | E100: 100000 | F100: 114580 | G100: 116560 | H100: 1980 | I100: 1.7 | K100: 0 | L100: 114580 | M100: 116560 | N100: 1.7
A101: 27 | E101: 200000 | F101: 228730 | G101: 232690 | H101: 3960 | I101: 1.7 | K101: 0 | L101: 228730 | M101: 232690 | N101: 1.7
A102: 28 | E102: 300000 | F102: 342880 | G102: 348820 | H102: 5940 | I102: 1.7 | K102: 0 | L102: 342880 | M102: 348820 | N102: 1.7
C104: ="(1) INCLUDES CURRENT RIDER GCAT OF "&TEXT(CUR_FTL_GCAT,"$0.000_);($0.000)")&"/MCF" -> (1) INCLUDES CURRENT RIDER GCAT OF $0.037 /MCF

Sheet Revenue Requirements
A1: REVENUE REQUIREMENTS FROM COST OF SERVICE STUDY
B3: =COMPANY -> DUKE ENERGY KENTUCKY | G3: =B3 -> DUKE ENERGY KENTUCKY
B4: =CASE -> CASE NO. 2025-00125 | G4: =B4 -> CASE NO. 2025-00125 | M4: Comparison of Schedule M Calculated Proposed Revenues
B5: SCHEDULE M - CURRENT RATE REVENUES | G5: COST OF SERVICE STUDY | M5: Less COS Revenue Requirement
B6: No Riders - With Fuel | G6: Proposed Revenue Requirements | M6: =B4 -> CASE NO. 2025-00125
G7: =B4 -> CASE NO. 2025-00125
C9: Customer Bills | D9: Current Rate Revenues - No Riders - Including Fuel | G9: Rate | H9: Customer Component RRs | I9: COS - no riders - includes fuel and FAC | J9: % Change | K9: Increase | M9: Rate | N9: + value is high & - value is low
B10: RS | C10: ='Rate RS'!X66 -> 1194296 | D10: 94137279 | G10: =B10 -> RS | H10: 37108280 | I10: 108126909 | J10: =(I10-D10)/D10 -> 0.1486088205 | K10: =I10-D10 -> 13989630 | M10: =G10 -> RS | N10: ='Proposed Rates'!C21 -> 219
B11: GS | C11: ='Rate GS COM'!F24+'Rate GS IND'!F24+'Rate GS OPA'!F24 -> 86505 | D11: 40621911 | G11: =B11 -> GS | H11: 5962220 | I11: 47503533 | J11: =(I11-(D11+D17))/(D11+D17) -> 0.1679739257 | K11: =I11-D11-D17 -> 6831792 | M11: =G11 -> GS | N11: ='Rate GS COM'!R29+'Rate GS IND'!R29+'Rate GS OPA'!R29-'Revenue Requirements'!I11 -> -58217 | O11: This is from ID; Have to track that through the process since it's in other revenues
O12: Don't eliminate twice
B14: FT-Large | C14: ='Rate FT-LG'!F22 -> 1737 | D14: 7347846 | G14: FT-Large | H14: 422061 | I14: 8115946 | J14: =(I14-D14)/D14 -> 0.1045340362 | K14: =I14-D14 -> 768100 | M14: FT-Large | N14: ='Proposed Rates'!K23 -> 36
B15: IT | C15: ='Rate IT'!F22 -> 226 | D15: 1967238 | G15: IT | H15: 101909 | I15: 2000226 | J15: 0.01676868788 | K15: 32988 | M15: IT | N15: ='Proposed Rates'!O21 -> -220
G16: Additional FT for Min use | I16: =-'Proposed Rates'!L19 -> -854599
B17: ID | D17: ='SCH M-2.2'!V41 -> 49830 | G17: Remove ID since in GS and Other | I17: =-'SCH M-2.3'!R41 -> -58200 | J17: =(-I17/D17)-1 -> 0.1679711017 | M17: Total | N17: =SUM(N10:N15) -> -58182 | O17: Should = ID or very close
N18: =I17 -> -58200 | O18: ID
N19: =N17-N18 -> 18 | O19: Check Value
B28: OTHER - less ID | D28: 1087776 | G28: OTHER | I28: =+'SCH M-2.3'!R46 -> 2002500 | J28: =(I28-D28)/D28 -> 0.8409120995
B29: TOTAL | C29: =SUM(C10:C28) -> 1282764 | D29: =SUM(D10:D28) -> 145211880 | G29: TOTAL | H29: =SUM(H10:H28) -> 43594470 | I29: =SUM(I10:I28) -> 166836315 | J29: =(I29-D29)/D29 -> 0.1489164316 | K29: =I29-D29 -> 21624435

Sheet Proposed Rates
A1: PROPOSED RATE CALCULATIONS
B2: =COMPANY -> DUKE ENERGY KENTUCKY | F2: =COMPANY -> DUKE ENERGY KENTUCKY | J2: =COMPANY -> DUKE ENERGY KENTUCKY | N2: =COMPANY -> DUKE ENERGY KENTUCKY
B3: =CASE -> CASE NO. 2025-00125 | F3: =CASE -> CASE NO. 2025-00125 | J3: =CASE -> CASE NO. 2025-00125 | N3: =CASE -> CASE NO. 2025-00125
B4: PROPOSED RATE CALCULATION | F4: PROPOSED RATE CALCULATION | J4: PROPOSED RATE CALCULATION | N4: PROPOSED RATE CALCULATION
B5: Rate: RS | F5: Rate: GS | J5: Rate: FT-Large | N5: Rate: IT
C6: Test Period | G6: Test Period | K6: Test Period
B7: Customer Bills | C7: ='Rate RS'!F24 -> 1194296 | F7: Customer Bills | G7: ='Rate GS COM'!F24+'Rate GS IND'!F24+'Rate GS OPA'!F24 -> 86505 | J7: Customer Bills | K7: ='Rate FT-LG'!F22 -> 1737 | N7: Customer Bills | O7: ='Rate IT'!F22 -> 226
B8: COSS - RS Customer Component | C8: ='Revenue Requirements'!H10 -> 37108280 | F8: COSS - GS Customer Component | G8: ='Revenue Requirements'!H11+'Revenue Requirements'!H12+'Revenue Requirements'!H13 -> 5962220 | J8: COSS - FT-L Customer Component | K8: ='Revenue Requirements'!H14 -> 422061 | N8: COSS - IT Customer Component | O8: ='Revenue Requirements'!H15 -> 101909
B9: COSS Customer Charge | C9: =ROUND(C8/C7,2) -> 31.07 | F9: COSS Customer Charge | G9: =ROUND(G8/G7,2) -> 68.92 | J9: COSS Customer Charge | K9: =ROUND(K8/K7,2) -> 242.98 | N9: COSS Customer Charge | O9: =ROUND(O8/O7,2) -> 450.92
B10: Current Customer Charge | C10: =CUR_RS_CUST -> 17.5 | D10: =C10*(1+'Revenue Requirements'!J10) -> 20.10065436 | F10: Current Customer Charge | G10: =CUR_GS_CUST -> 58 | J10: Current Customer Charge | K10: =CUR_FTL_CUST -> 430 | N10: Current Customer Charge | O10: =CUR_IT_CUST -> 430
B11: Gap | C11: =C9-C10 -> 13.57 | F11: Gap | G11: =G9-G10 -> 10.92 | J11: Gap | K11: =K9-K10 -> -187.02 | N11: Gap | O11: =O9-O10 -> 20.92
B12: Migration @ % of Justified | C12: =ROUND(C11*$C$29,2) -> 6.79 | F12: Migration @ % of Justified | G12: =ROUND(G11*$C$29,2) -> 5.46 | J12: Migration @ % of Justified | K12: =ROUND(K11*$C$29,2) -> -93.51 | N12: Migration @ % of Justified | O12: =ROUND(O11*$C$29,2) -> 10.46
B13: Customer Charge at % Migration to COSS | C13: =C10+C12 -> 24.29 | F13: Customer Charge at % Migration to COSS | G13: =G10+G12 -> 63.46 | J13: Customer Charge at % Migration to COSS | K13: =K10+K12 -> 336.49 | N13: Customer Charge at % Migration to COSS | O13: =O10+O12 -> 440.46
B14: Proposed Customer Charge | C14: 20 | F14: Proposed Customer Charge | G14: 65 | J14: Proposed Customer Charge | K14: 430 | N14: Proposed Customer Charge | O14: 430
B15: Proposed Customer Charge Revenues | C15: ='Rate RS'!R24 -> 23885920 | F15: Proposed Customer Charge Revenues | G15: ='Rate GS COM'!R24+'Rate GS IND'!R24+'Rate GS OPA'!R24 -> 5622825 | J15: Proposed Customer Charge Revenues | K15: ='Rate FT-LG'!R22 -> 746910 | N15: Proposed Customer Charge Revenues | O15: ='Rate IT'!R22 -> 97180
B17: COSS - RS Revenue Requirement | C17: ='Revenue Requirements'!I10 -> 108126909 | F17: COSS - GS Revenue Requirement | G17: =SUM('Revenue Requirements'!I11:I13) -> 47503533 | J17: COSS - FT-L Revenue Requirement | K17: ='Revenue Requirements'!I14 -> 8115946 | N17: COSS - IT Revenue Requirement | O17: ='Revenue Requirements'!I15 -> 2000226
B18: Less Proposed Customer Charge Revenues Less GCA | C18: =C17-C15-'Rate RS'!P29 -> 43172672 | F18: Less Proposed Customer Charge Revenues Less GCA | G18: =G17-G15-'Rate GS COM'!P27-'Rate GS IND'!P27-'Rate GS OPA'!P27 -> 19041507 | J18: Less Proposed Customer Charge Revenues Less GCA/GCAT | K18: =K17-K15-'Rate FT-LG'!P25-'Rate FT-LG'!P31 -> 7365704 | N18: Less Proposed Customer Charge Revenues Less GCA | O18: =O17-O15-'Rate IT'!P25 -> 1903046
B19: Test Period MCF | C19: ='Rate RS'!H27 -> 6130423 | F19: Interdeptartmental | G19: =+G30 -> 58200 | J19: Change in Min Amazon | K19: =L19 -> 854599 | L19: =1532059-'SCH M-2.2'!V42 -> 854599 | N19: Test Period MCF | O19: ='Rate IT'!H25 -> 1654919
B20: Proposed Delivery Charge | C20: =ROUND(C18/C19,4)+0 -> 7.0424 | F20: GS Rev Requirement | G20: =+G18-G19 -> 18983307 | J20: FT-L Rev Requirement | K20: =+K18-K19 -> 6511105 | N20: Proposed Energy Charge | O20: =ROUND(O18/O19,4)-0.0001 -> 1.1498
B21: Check to Revenue Requirements | C21: ='Rate RS'!R29-C17 -> 219 | F21: Test Period MCF | G21: ='Rate GS COM'!H27+'Rate GS IND'!H27+'Rate GS OPA'!H27 -> 3409294 | J21: Test Period MCF | K21: ='Rate FT-LG'!H25 -> 3002186 | N21: Check to Revenue Requirements | O21: ='Rate IT'!R27-O17 -> -220
F22: Proposed Energy Charge | G22: =ROUND(G20/G21,4)-0 -> 5.5681 | J22: Proposed Energy Charge | K22: =ROUND(K20/K21,4)-0 -> 2.1688
F23: Check to Revenue Requirements | G23: ='Rate GS COM'!R29+'Rate GS IND'!R29+'Rate GS OPA'!R29-G17+G30 -> -17 | J23: Check to Revenue Requirements | K23: ='Rate FT-LG'!R27-K20-K15 -> 36
F27: Current Interdept Rev | G27: =+'SCH M-2.2'!V41 -> 49830
F28: GS Increase % | G28: 0.16797
B29: Migration Percentage | C29: 0.5 | F29: Interdept Increase | G29: =ROUND(+G27*G28,0) -> 8370
F30: Proposed Intdept Rev | G30: =+G27+G29 -> 58200
C38: =+'SCH M'!G50 -> 175700142
C39: 126681928
C40: =+C38-C39 -> 49018214

Sheet Avg Incr
D2: BILL DATA INCLUDING RIDERS LESS COST of GAS | I2: TOTAL | J2: TOTAL
F3: DOLLAR | G3: PERCENT | I3: CURRENT | J3: PROPOSED | K3: PERCENT
B4: Average | C4: Average | D4: CURRENT | E4: PROPOSED | F4: INCREASE | G4: INCREASE | H4: GAS | I4: BILL | J4: BILL | K4: INCREASE
A5: RATE | B5: USE | C5: USE | D5: BILL | E5: BILL | F5: (D - C) | G5: (E / C) | H5: COST (1) | I5: (C + G) | J5: (D + G) | K5: (I-H) /H
A6: CODE | B6: (B) | C6: (B) | D6: (C) | E6: (D) | F6: (E) | G6: (F) | H6: (G) | I6: (H) | J6: (I) | K6: (L)
B7: (CCF) | C7: (MCF) | D7: ($) | E7: ($) | F7: ($) | G7: (%) | H7: ($) | I7: ($) | J7: ($) | K7: (%)
A9: RS | B9: =+C9*10 -> 51 | C9: =ROUND(+'Rate RS'!H27/'Rate RS'!F24,1) -> 5.1 | D9: =ROUND(C9*(CUR_RS+CUR_RS_DSM+CUR_RS_PMM)+CUR_RS_CUST+CUR_RS_HEA,2) -> 50.75 | E9: =ROUND(C9*(PRO_RS_COM+PRO_RS_DSM+PRO_RS_PMM)+PRO_RS_CUST+PRO_RS_HEA,2) -> 62.4 | F9: =E9-D9 -> 11.65 | G9: =ROUND(F9/D9,3)*100 -> 23 | H9: =ROUND(C9*EGC,2) -> 34.17 | I9: =D9+H9 -> 84.92 | J9: =E9+H9 -> 96.57 | K9: =ROUND((J9-I9)/I9,3) -> 0.137
A10: GS-Comm | B10: =+C10*10 -> 363 | C10: =ROUND('Rate GS COM'!H27/'Rate GS COM'!F24,1) -> 36.3 | D10: =ROUND(C10*(CUR_GS+CUR_GS_PMM)+CUR_GS_CUST,2) -> 204.81 | E10: =ROUND(C10*(+PRO_GS+PRO_GS_PMM)+PRO_GS_CUST,2) -> 278.01 | F10: =E10-D10 -> 73.2 | G10: =ROUND(F10/D10,3)*100 -> 35.7 | H10: =ROUND(C10*EGC,2) -> 243.18 | I10: =D10+H10 -> 447.99 | J10: =E10+H10 -> 521.19 | K10: =ROUND((J10-I10)/I10,3) -> 0.163
A11: GS-Ind | B11: 1005 | C11: =ROUND('Rate GS IND'!H27/'Rate GS IND'!F24,1) -> 100.5 | D11: =ROUND(C11*(CUR_GS+CUR_GS_PMM)+CUR_GS_CUST,2) -> 464.45 | E11: =ROUND(C11*(+PRO_GS+PRO_GS_PMM)+PRO_GS_CUST,2) -> 654.74 | F11: =E11-D11 -> 190.29 | G11: =ROUND(F11/D11,3)*100 -> 41 | H11: =ROUND(C11*EGC,2) -> 673.26 | I11: =D11+H11 -> 1137.71 | J11: =E11+H11 -> 1328 | K11: 0.167
A12: GS-OPA | B12: 749 | C12: =ROUND('Rate GS OPA'!H27/'Rate GS OPA'!F24,1) -> 74.9 | D12: =ROUND(C12*(CUR_GS+CUR_GS_PMM)+CUR_GS_CUST,2) -> 360.92 | E12: =ROUND(C12*(+PRO_GS+PRO_GS_PMM)+PRO_GS_CUST,2) -> 504.52 | F12: 143.6 | G12: 39.8 | H12: =ROUND(C12*EGC,2) -> 501.76 | I12: =D12+H12 -> 862.68 | J12: =E12+H12 -> 1006.28 | K12: 0.166
A13: FT-L | B13: 16596 | C13: =ROUND('Rate FT-LG'!H25/('Rate FT-LG'!F22+72),1) -> 1659.6 | D13: =ROUND(C13*(CUR_FTL_COM+CUR_FTL_GCAT+CUR_FTL_PMM),2)+CUR_FTL_CUST -> 4155.47 | E13: =ROUND(C13*(PRO_FTL_COM+PRO_FTL_GCAT+PRO_FTL_PMM),2)+PRO_FTL_CUST -> 4107.67 | F13: =E13-D13 -> -47.8 | G13: =ROUND(F13/D13,3)*100 -> -1.2 | H13: 0 | I13: =D13+H13 -> 4155.47 | J13: =E13+H13 -> 4107.67 | K13: -0.012
A14: IT | B14: 73227 | C14: =ROUND('Rate IT'!H25/'Rate IT'!F22,1) -> 7322.7 | D14: =ROUND(C14*(CUR_IT_COM+CUR_IT_PMM),2)+CUR_IT_CUST -> 8788.86 | E14: =ROUND(C14*(PRO_IT_COM+PRO_IT_PMM),2)+PRO_IT_CUST -> 8933.85 | F14: =E14-D14 -> 144.99 | G14: =ROUND(F14/D14,3)*100 -> 1.6 | H14: 0 | I14: 8788.86 | J14: 8933.85 | K14: 0.016
A16: IMBS | B16: =+B13+B14 -> 89823 | C16: =+C13+C14 -> 8982.3 | D16: =ROUND(C16*B23,2) -> 1226.98 | E16: =ROUND(C16*B24,2) -> 3516.57 | F16: =E16-D16 -> 2289.59 | G16: =ROUND(F16/D16,3)*100 -> 186.6 | H16: 0 | I16: =D16+H16 -> 1226.98 | J16: =E16+H16 -> 3516.57 | K16: =ROUND((J16-I16)/I16,3) -> 1.866
A22: IMBS
A23: Current Rate | B23: 0.1366 | C23: /mcf
A24: Proposed Rate | B24: 0.3915 | C24: /mcf
